Cogmind - Beta 16 @@@ ROGUE MODE // 2025.10.29 @ 16:49:48 // Winter2019/RPGLIKE Player: Fellun Result: Destroyed by EQ-031 with Graviton Cannon Performance ------------- Evolutions (9) 4500 Regions Visited (27) 5400 Robots Destroyed (714) 3570 Value Destroyed (51844) 51844 Prototype IDs (160) 3200 Alien Tech Used (3) 600 Bonus (48598) 48598 TOTAL SCORE: 117712 Bonus ------- Triggered High Security 2500 High Alert Combat Kills 29997 Follower Combat Kills 1070 Aligned with FarCom 300 Met Data Miner 300 Met Zhirov 300 Scanned by Researcher 500 Acquired SGEMP 2000 Delivered SGEMP 2000 Met MAIN.C 5000 Destroyed MAIN.C Shell 5000 Friendly Fire -369 Cogmind --------- Core Integrity 0/1900 Matter 650/650 Energy 8069/8287 System Corruption 0% Temperature Hot (231) Movement Walking (56) Location -1/Command Parts ------- > --- POWER (3) -------- Quantum-VC Reactor > --- PROPULSION (3) --- VSS-Fieldthrust Exoskeleton > --- UTILITY (11) ----- Armored Scrap Engine Concept Countertargeting System Concept Networked Targeting System (fused) Experimental Target Analyzer Experimental Core Analyzer Experimental Core Analyzer Concept RG22 Armor Concept Energy Mantle Concept Matter Streamer > --- WEAPON (7) ------- Hpw. Accelerated Linear Construct/C Hpw. Thermic Caster Construct/G Hpw. Kinetic Driver Construct/C Hpw. Ballistic Strikerail Construct/C Hpw. Accelerated Rail Construct/G > --- INVENTORY (6) ---- Myomer Leg Experimental Transmission Jammer Advanced Phase Shifter Graphene Brace Crosscalibrator Peak State ------------ > --- POWER ------------ Quantum-VC Reactor > --- PROPULSION ------- VSS-Fieldthrust Exoskeleton > --- UTILITY ---------- Armored Scrap Engine Concept Countertargeting System Concept Networked Targeting System Experimental Kinecellerator Concept RG22 Armor Graphene Brace Concept Energy Mantle Concept Matter Streamer Concept Navigation Harness > --- WEAPON ----------- Hpw. Accelerated Linear Construct/C Hpw. Thermic Caster Construct/G Hpw. Kinetic Driver Construct/C Hpw. Ballistic Strikerail Construct/C Hpw. Accelerated Rail Construct/G > --- INVENTORY -------- Myomer Leg Experimental Transmission Jammer Advanced Phase Shifter Crosscalibrator Transdimensional Reconstructor [Rating: 253] Favorites ----------- Power Constructs Engine Backup Power III Power Core Light Nuclear Core Reactor Constructs Propulsion Constructs Leg Constructs Wheel Wheel Hover Unit Aerolev Unit Flight Unit Improved VTOL Module Utility Armored Scrap Engine Device Armored Scrap Engine Storage Large Matter Pod Processor Advanced Signal Interpreter Hackware System Shield Protection Medium Regenerative Plating Weapon Constructs Energy Gun Constructs Energy Cannon Latent Energy Streamer Ballistic Gun Constructs Ballistic Cannon Constructs Build | -11 -10 -10 -10 -9 -8 -8 -8 -6 -6 -6 -6 -6 -6 -5 -5 -5 -5 -5 -4 -4 -3 -3 -2 -2 -2 -1 -1 ------- Run | Yrd Mat Min Exi Min Mat Sto Rec Fac Was Fac Low Low Dat Pro Fac Upp Upp Zhi Pro Fac Res Tes Res Qua Frg Acc Com Slots Evolved 20 | 4 . . . . 1 1 2 1 . 3 . . . . 1 . 1 . . . 2 . 2 . 1 . 1 Power 2 | 1 . . . . . . . . . . . . . . . . . . . . . . 1 . . . . Propulsion 2 | 1 . . . . . . . 1 . . . . . . . . . . . . . . . . . . . Utility 10 | 1 . . . . . 1 2 . . 2 . . . . 1 . 1 . . . 2 . . . . . . Weapon 6 | 1 . . . . 1 . . . . 1 . . . . . . . . . . . . 1 . 1 . 1 Parts Attached 134 | 6 2 1 1 . 4 13 4 . 4 3 4 2 . . 4 1 7 3 1 3 6 13 5 2 34 . 11 Power 10 | 2 . . . . 1 1 1 . . . . . . . . . 2 1 . . . . 2 . . . . Engine 4 | 2 . . . . . 1 1 . . . . . . . . . . . . . . . . . . . . Core 3 | . . . . . 1 . . . . . . . . . . . 2 . . . . . . . . . . Reactor 3 | . . . . . . . . . . . . . . . . . . 1 . . . . 2 . . . . Propulsion 6 | 2 . . . . . 4 . . . . . . . . . . . . . . . . . . . . . Treads . | . . . . . . . . . . . . . . . . . . . . . . . . . . . . Leg 2 | . . . . . . 2 . . . . . . . . . . . . . . . . . . . . . Wheel 2 | 2 . . . . . . . . . . . . . . . . . . . . . . . . . . . Hover 1 | . . . . . . 1 . . . . . . . . . . . . . . . . . . . . . Flight 1 | . . . . . . 1 . . . . . . . . . . . . . . . . . . . . . Utility 102 | . 2 . 1 . . . 3 . 4 3 3 2 . . 4 1 5 2 1 3 6 13 2 2 34 . 11 Device 67 | . . . . . . . 1 . 4 1 3 . . . 3 . 3 1 1 2 4 9 2 2 25 . 6 Storage 3 | . 2 . . . . . . . . . . . . . . . . . . . . . . . 1 . . Processor 15 | . . . 1 . . . . . . 1 . 1 . . 1 . . . . 1 . 2 . . 3 . 5 Hackware 3 | . . . . . . . 1 . . . . 1 . . . . . . . . . . . . 1 . . Protection 14 | . . . . . . . 1 . . 1 . . . . . 1 2 1 . . 2 2 . . 4 . . Artifact . | . . . . . . . . . . . . . . . . . . . . . . . . . . . . Weapon 16 | 2 . 1 . . 3 8 . . . . 1 . . . . . . . . . . . 1 . . . . Energy Gun 11 | 2 . . . . 1 6 . . . . 1 . . . . . . . . . . . 1 . . . . Energy Cannon 1 | . . . . . 1 . . . . . . . . . . . . . . . . . . . . . . Ballistic Gun 4 | . . 1 . . 1 2 . . . . . . . . . . . . . . . . . . . . . Ballistic Cannon . | . . . . . . . . . . . . . . . . . . . . . . . . . . . . Launcher . | . . . . . . . . . . . . . . . . . . . . . . . . . . . . Special Weapon . | . . . . . . . . . . . . . . . . . . . . . . . . . . . . Impact Weapon . | . . . . . . . . . . . . . . . . . . . . . . . . . . . . Slashing Weapon . | . . . . . . . . . . . . . . . . . . . . . . . . . . . . Piercing Weapon . | . . . . . . . . . . . . . . . . . . . . . . . . . . . . Special Melee Weapon . | . . . . . . . . . . . . . . . . . . . . . . . . . . . . Unidentified Prototypes 55 | . . . . . . 10 1 . 2 1 . . . . . . . 3 . . . 11 . . 19 . 8 Parts Lost 8 | . . . . . . . . . . . 1 . . . 1 1 . . . 1 . . . 1 3 . . Power . | . . . . . . . . . . . . . . . . . . . . . . . . . . . . Propulsion . | . . . . . . . . . . . . . . . . . . . . . . . . . . . . Utility 7 | . . . . . . . . . . . 1 . . . . 1 . . . 1 . . . 1 3 . . Weapon 1 | . . . . . . . . . . . . . . . 1 . . . . . . . . . . . . Highest Loss Streak 1 | . . . . . . . . . . . 1 . . . 1 1 . . . 1 . . . 1 1 . . To Critical Strikes 1 | . . . . . . . . . . . . . . . 1 . . . . . . . . . . . . Average Backups 2 | . 1 1 1 1 2 2 2 1 2 2 1 1 1 1 1 1 1 3 3 3 2 2 2 2 2 4 4 Power . | . . . . . . . . . . . . . . . . . . . . . . . . . . . . Propulsion . | . . . . . . . . . . . . . . . . . . . . . . . . . . . . Utility 1 | . . . . . 1 1 1 1 1 2 1 1 1 1 1 1 1 2 2 2 1 1 1 1 1 3 3 Weapon . | . 1 1 1 1 1 1 1 . 1 . . . . . . . . . . . . . . . . . . Tool/Special . | . . . . . . . . . . . . . . . . . . . . . . . . . . . . Unused Backups 7 | . . . 1 . . . . . . 1 . . . . . . . . . . . 1 . . 3 . 1 Power . | . . . . . . . . . . . . . . . . . . . . . . . . . . . . Propulsion 1 | . . . . . . . . . . . . . . . . . . . . . . . . . . . 1 Utility 3 | . . . . . . . . . . . . . . . . . . . . . . 1 . . 2 . . Weapon 3 | . . . 1 . . . . . . 1 . . . . . . . . . . . . . . 1 . . Tool/Special . | . . . . . . . . . . . . . . . . . . . . . . . . . . . . Average Slot Usage (%) 76 | . 96 100 100 100 100 90 89 78 75 71 74 81 81 76 69 65 64 73 77 76 71 74 73 71 71 69 67 Engine 4 | . 25 25 25 25 21 10 12 15 14 11 6 6 6 1 . . . . . . . . . . . . . Core 1 | . . . . . 2 10 4 . . . 6 6 6 1 . . . 4 . 2 . . . . . . . Reactor 3 | . . . . . . . . . . . . . . 4 5 5 5 5 11 7 4 5 6 4 3 4 4 Leg 1 | . . . . . . . 13 1 4 . . . . . 1 . . . . . . 2 . 3 1 4 4 Wheel 2 | . 25 25 25 25 24 19 1 5 . . . . . . . . . . . . . . . . . . . Hover 2 | . . . . . . . . . 2 6 6 6 6 6 4 2 . . . 2 . . 3 . 2 . . Device 23 | . . . . . . . 4 7 12 13 16 18 18 18 19 23 22 27 27 31 35 33 29 31 36 34 31 Storage 3 | . 21 25 23 12 11 10 8 7 1 . 5 6 6 6 5 . . . . . . . . . . . . Processor 4 | . . . 1 12 11 10 8 7 7 6 6 6 6 6 4 5 5 5 5 5 5 6 7 4 . . 3 Hackware 1 | . . . . . . . 6 7 7 6 6 6 6 6 5 1 . . . . . . . . . . . Protection 4 | . . . . . . . 1 . . 4 . . . . . 4 5 6 11 6 5 9 9 8 5 4 4 Energy Gun 8 | . 25 18 12 12 11 15 17 14 15 10 7 12 12 15 14 11 11 11 11 6 4 5 2 3 5 4 4 Energy Cannon 3 | . . . . . 1 . . . . 2 11 12 12 6 . . . . . . 5 4 8 6 3 2 . Ballistic Gun 4 | . . 6 12 12 13 14 8 7 7 6 . . . . . . . . . . 1 3 4 2 6 7 5 Ballistic Cannon 3 | . . . . . . . . . . . . . . 2 5 5 5 5 5 9 2 2 . 3 4 5 10 Peak Build Rating 253 | 6 8 8 14 14 23 32 55 62 76 88 86 85 85 85 91 95 104 111 113 122 152 163 182 187 250 245 253 Average Rating 133 | 4 7 8 8 14 17 23 44 55 70 82 77 82 85 83 84 90 95 105 112 117 139 156 169 182 224 243 245 On Entrance 89 | . 6 8 8 14 14 21 32 55 62 76 86 82 85 85 84 91 90 104 111 113 122 151 162 179 179 245 242 Avg Prop Armor Cover (%) . | . . . . . . . . . . . . . . . . . . . . . . . . . . . . Naked Turns . | . . . . . . . . . . . . . . . . . . . . . . . . . . . . Heaviest Build 152 | 11 17 18 18 15 23 26 29 29 28 56 49 38 38 38 36 38 55 62 63 68 91 99 119 130 149 129 152 Greatest Support 141 | 26 26 26 26 26 26 30 38 75 75 75 75 75 75 75 92 72 72 72 72 90 90 120 119 119 141 141 141 Greatest Overweight (x) 4 | 1 . . . . . 4 1 . . . . . . . . . . . . . 1 1 . 1 2 . 1 Average Overweight (x) . | . . . . . . . . . . . . . . . . . . . . . . . . . . . . Largest Inventory Capacity 6 | 1 1 1 1 2 2 2 2 2 3 3 3 3 3 3 3 3 3 3 3 3 3 4 4 4 6 6 6 Average Capacity 3 | . 1 1 1 1 2 2 2 2 2 3 3 3 3 3 3 3 3 3 3 3 3 3 4 4 4 6 6 Most Carried 6 | 1 1 1 1 2 2 2 2 2 3 3 2 1 1 1 1 1 3 3 3 3 3 4 4 4 6 4 5 Average Carried 3 | . 1 . . 1 2 2 2 1 2 2 1 1 1 1 1 1 1 2 3 3 2 3 4 4 4 4 4 Final Capacity 6 | 1 1 1 1 2 2 2 2 2 3 3 3 3 3 3 3 3 3 3 3 3 3 4 4 4 6 6 6 Final Carried 6 | 1 1 1 1 2 2 2 2 2 3 2 1 1 1 1 1 1 3 3 3 3 2 4 4 4 6 4 5 Scrap Engine Consumption 276 | . . . . . . . 17 13 7 10 2 1 . 4 8 8 3 1 3 8 33 22 23 8 82 3 20 Constructs Created 8 | . . . . . . . 1 2 . 2 . . . . . . . . . . 1 . . 1 1 . . Constructs Modified 115 | . . . . . . . 2 3 1 4 1 . . 4 3 5 . . 1 4 12 11 4 10 37 3 10 Class Distribution -------------------- 64% | Hacker-Construct 14% | Construct 7% | Hacker-Tank 7% | Mutant 3% | Tank Dominant Class ---------------- Mutant | -10/Materials Mutant | -10/Mines Mutant | -10/Exiles Mutant | -9/Mines Mutant | -8/Materials Tank | -8/Storage Hacker-Tank | -8/Recycling Hacker-Tank | -6/Factory Hacker-Construct | -6/Waste Hacker-Construct | -6/Factory Hacker-Construct | -6/Lower Caves Hacker-Construct | -6/Lower Caves Hacker-Construct | -6/Data Miner Hacker-Construct | -5/Proximity Caves Hacker-Construct | -5/Factory Construct | -5/Upper Caves Construct | -5/Upper Caves Construct | -5/Zhirov Construct | -4/Proximity Caves Construct | -4/Factory Construct | -3/Research Hacker-Construct | -3/Testing Hacker-Construct | -2/Research Hacker-Construct | -2/Quarantine Hacker-Construct | -2/Protoforge Hacker-Construct | -1/Access Hacker-Construct | -1/Command Resources | -11 -10 -10 -10 -9 -8 -8 -8 -6 -6 -6 -6 -6 -6 -5 -5 -5 -5 -5 -4 -4 -3 -3 -2 -2 -2 -1 -1 ----------- Run | Yrd Mat Min Exi Min Mat Sto Rec Fac Was Fac Low Low Dat Pro Fac Upp Upp Zhi Pro Fac Res Tes Res Qua Frg Acc Com Matter Collected 32380 | 240 196 63 . 76 209 281 377 192 164 309 230 147 . 110 322 205 104 . 478 541 428 2041 2725 935 15916 996 5095 Remotely 7864 | . . . . . . . . . . . . . . . . . . . . . . . . . 3941 . 3923 Salvage Created 47285 | . 126 . . 54 645 488 1011 743 . 889 71 664 . 629 1096 1120 149 285 1407 3007 1622 2874 3105 1159 19807 2607 3727 Parts 2360 | . 5 . . 9 36 38 54 51 . 47 8 15 . 36 38 55 19 1 43 172 92 151 162 75 919 88 246 Haulers Intercepted 4 | . . . . . . . . 1 . . . . . . . . . . . 2 . . . . . 1 . Recyclers Shooed 6 | . . . . . . . . 1 . 4 . . . . . . . . . . . 1 . . . . . Parts Field Recycled . | . . . . . . . . . . . . . . . . . . . . . . . . . . . . Retrieved Matter . | . . . . . . . . . . . . . . . . . . . . . . . . . . . . Parts Self-Destructed 88 | . . . . . . . . . . . 5 5 . 29 . 26 . . 23 . . . . . . . . Prevented 67 | . . . . . . . . . . . 4 10 . 7 . 28 2 . 16 . . . . . . . . Parts Restored . | . . . . . . . . . . . . . . . . . . . . . . . . . . . . Kills | -11 -10 -10 -10 -9 -8 -8 -8 -6 -6 -6 -6 -6 -6 -5 -5 -5 -5 -5 -4 -4 -3 -3 -2 -2 -2 -1 -1 ------- Run | Yrd Mat Min Exi Min Mat Sto Rec Fac Was Fac Low Low Dat Pro Fac Upp Upp Zhi Pro Fac Res Tes Res Qua Frg Acc Com Combat Hostiles Destroyed 670 | . 2 . . 5 10 14 14 17 . 13 7 8 . 18 13 22 5 . 15 56 23 36 37 17 259 29 50 Melee 1 | . . . . . . . . . . 1 . . . . . . . . . . . . . . . . . Guns 249 | . 2 . . 5 7 12 13 12 . 6 1 2 . 14 7 8 1 . 4 5 6 13 7 4 89 11 20 Cannons 367 | . . . . . . . . . . 6 3 2 . 4 4 10 3 . 11 44 17 23 30 11 151 18 30 AOE 16 | . . . . . 3 2 1 4 . . . . . . . . . . . 6 . . . . . . . Classes Destroyed 34 | . 1 . . 1 4 2 4 3 . 3 1 1 . 1 . . . . . 3 . 5 . . 5 . . Worker 17 | . . . . . . . . . . 2 . . . . 1 . . . . 1 1 1 3 2 1 . 5 Builder 15 | . . . . . . . . 3 . . . . . . 2 . . . . 1 . 2 3 2 2 . . Tunneler 4 | . . . . . . . 1 . . 2 . . . . . . . . . 1 . . . . . . . Hauler 4 | . . . . . . . . 1 . . . . . . . . . . . 2 . . . . . 1 . Recycler 7 | . . . . . 1 1 1 . . 2 . . . . 1 . . . . 1 . . . . . . . Carrier 2 | . . . . . . . . . . . . . . . . . . . . . . . . . 2 . . Mechanic 8 | . . . . . . . . . . . . . . . . . . . . . . 1 . . 6 1 . Operator 8 | . . . . . . . . . . 1 . . . . 2 . . . . 2 1 1 . . 1 . . Drone 3 | . . . . . . . . . . . . . . 2 . . . . . . . . . . 1 . . Watcher 27 | . . . . . 3 1 . . . 2 . . . . 2 . . . . 4 2 3 2 . 3 4 1 Swarmer 51 | . . . . . . 4 . 4 . 5 . . . 11 2 5 . . 2 . 10 . . . 4 . 4 Saboteur 12 | . . . . . . . . . . 1 . . . . . . . . . 2 . 1 . . 8 . . Grunt 239 | . 2 . . 4 7 7 3 5 . 4 3 5 . 2 5 8 1 . 8 24 . 9 12 4 107 11 8 Brawler 30 | . . . . 1 . . . 1 . . . 1 . . . 5 . . 2 2 . 2 1 1 14 . . Duelist 25 | . . . . . . 1 1 . . . 1 1 . . . 2 . . . 2 . 1 1 . 14 1 . Protector 13 | . . . . . . . 2 . . . . . . . . . . . . 1 . . 1 . 8 1 . Researcher 9 | . . . . . . . . . . . . . . . . . . . . . . 1 . 1 7 . . Sentry 70 | . . . . . 2 2 5 4 . . . . . 1 1 1 . . 2 5 7 . 9 . 24 6 1 Demolisher 4 | . . . . . . . . . . . . . . . . . . . . 1 . . . . . . 3 Specialist 3 | . . . . . . . . . . . . . . . . . . . . . . 3 . . . . . Hunter 55 | . . . . . 1 . . 2 . 2 . . . 1 3 . . . . 6 4 8 2 7 6 6 7 Programmer 55 | . . . . . . . . 1 . 1 . . . . 2 . . . . 2 . 8 10 5 20 4 2 Heavy 2 | . . . . . . . . . . . . . . . . . . . . 1 1 . . . . . . Q-Series 1 | . . . . . . . . . . . . . . . . . . . . . . . . . 1 . . Behemoth 7 | . . . . . . . . . . . . 1 . 1 . 1 . . 1 . 1 . 1 . . . 1 M Guard 1 | . . . . . . . . . . . . . . . . . . . . . . . . . . . 1 Enhanced Q-Series 18 | . . . . . . . . . . . . . . . . . . . . . . . . . . . 18 Hotshot 15 | . . . . . . . . . . . . . . . . . . . . . . . . . 15 . . Decapitator 12 | . . . . . . . . . . . . . . . . . . . . . . . . . 12 . . Immortal 4 | . . . . . . . . . . . . . . . . . . . . . . . . . 4 . . Overlord 1 | . . . . . . . . . . . . . . . . . . . . . . . . . 1 . . Combat Programmer 2 | . . . . . . . . . . . . . . . . . . . . . . . . . . . 2 Striker 2 | . . . . . . . . . . . . . . . . . . . . . . 2 . . . . . Executioner 6 | . . . . . . . . . . . . . . . . . . . . . . . . . 4 . 2 Alpha 7 5 | . . . . . . . . . . . . . . . . . . . . . . 1 . . 4 . . V-Series 12 | . . . . . . . . . . . . . . . . . . . . . . . . . 12 . . Protovariant X 1 | . . . . . . . . . . . . . . . . . . . . . . 1 . . . . . Scientist 2 | . . . . . . . 2 . . . . . . . . . . . . . . . . . . . . Scrapper 3 | . . . . . . . 3 . . . . . . . . . . . . . . . . . . . . Thief 2 | . . . . . . . . . . . 2 . . . . . . . . . . . . . . . . Master Thief 5 | . . . . . . . . . . . 1 . . . . . 4 . . . . . . . . . . Assembled 10 | . . . . . . . . . . . . . . . . . . . . 10 . . . . . . . Best Kill Streak 22 | . 2 . . 2 3 4 10 9 . 4 3 4 . 5 10 8 4 . 9 17 6 9 10 7 19 12 22 Combat Bots Only 18 | . 2 . . 2 3 4 5 5 . 4 3 4 . 5 7 8 4 . 9 13 5 8 7 4 18 10 13 Max Kills in Single Turn 7 | . 1 . . 1 2 2 3 6 . 2 1 2 . 2 2 1 1 . 1 7 2 4 3 2 3 3 3 Gunslinging . | . . . . . . . . . . . . . . . . . . . . . . . . . . . . Exploded 6 | . . . . . 2 1 1 3 . . . . . . . . . . . 6 . . . . . . . Melee 1 | . . . . . . . . . . 1 . . . . . . . . . . . . . . . . . Uniques/NPCs Destroyed 1 | . . . . . . . . . . . . . . . . . . . . . . . . . . . 1 MAIN.C Shell (-1/Command) Combat | -11 -10 -10 -10 -9 -8 -8 -8 -6 -6 -6 -6 -6 -6 -5 -5 -5 -5 -5 -4 -4 -3 -3 -2 -2 -2 -1 -1 -------- Run | Yrd Mat Min Exi Min Mat Sto Rec Fac Was Fac Low Low Dat Pro Fac Upp Upp Zhi Pro Fac Res Tes Res Qua Frg Acc Com Hostile Shots Fired 3625 | . 14 . . 36 41 59 16 183 1 77 35 42 . 81 92 55 11 . 56 220 92 269 219 115 1409 155 347 Missed 1492 | . 4 . . 8 12 17 4 66 . 37 16 19 . 31 37 18 3 . 17 93 33 106 97 52 623 76 123 Intercepted 2 | . . . . . . . . . . . . . . . . . . . . . . . . . 2 . . Hits 2133 | . 10 . . 28 29 42 12 117 1 40 19 23 . 50 55 37 8 . 39 127 59 163 122 63 786 79 224 Melee 80 | . . . . 4 . 1 . 1 1 1 8 2 . . . 6 8 . 2 3 . 2 6 . 35 . . Projectile 2053 | . 10 . . 24 29 41 12 116 . 39 11 21 . 50 55 31 . . 37 124 59 161 116 63 751 79 224 AOE 37 | . . . . . . . . . . 1 . . . . 1 . . . . 3 . . . . 15 . 17 Critical Strikes 157 | . . . . 2 3 1 1 2 . 3 1 . . 1 8 . . . 3 6 3 13 9 3 65 4 29 Actively Blocked 123 | . . . . . . . . . . . . . . . . . . . 1 . 2 12 9 3 64 4 28 Part Disruptions 3 | . . . . . . . . . . . . . . . . . . . . . . 1 . . 1 . 1 Damage Taken 36248 | . 107 . . 428 374 695 302 1322 84 753 336 548 . 786 1194 711 42 . 800 2772 1304 3349 3160 1308 10944 918 4011 Core 25920 | . 91 . . 340 306 561 244 1064 66 479 257 438 . 632 944 525 28 . 416 1964 942 2088 2048 917 7806 698 3066 Absorbed by Shields 14474 | . . . . . . 12 . . . 4 . . . . . . . . . . . . . . 9684 881 3893 Redirected to Core 23396 | . 57 . . 301 235 465 208 895 66 426 224 401 . 543 840 486 28 . 331 1800 804 1942 1893 804 7251 641 2755 Redirected to Shielding 279 | . . . . . . . . . . . . . . . . . . . 205 26 . . . . 48 . . Ignored by Resistances 5586 | . . . . . . 40 22 116 7 52 17 31 . 88 156 113 . . 169 484 188 360 269 123 1855 149 1347 Regen/Repaired (Parts) 5030 | . . . . . . 95 10 9 63 12 3 . . 49 64 304 8 . 11 146 285 810 295 466 1524 266 610 Core Remaining (%) 74 | 100 . . . 97 . . 80 . . . . . . 77 . . . . 88 77 . 42 . . 32 . . Volleys Fired 1429 | . 7 . . 22 38 47 23 40 9 52 26 25 . 27 53 44 11 6 37 127 58 115 87 37 395 35 108 Largest 5 | . 2 . . 2 3 3 3 3 3 3 3 4 . 4 4 3 3 3 3 3 3 3 4 4 5 5 5 Hottest 487 | . 80 . . 60 100 130 130 130 147 191 191 241 . 241 229 199 199 199 199 220 220 273 361 361 487 359 387 Shots Fired 4961 | . 14 . . 44 81 140 69 114 27 136 76 93 . 95 161 125 32 18 110 335 165 324 277 134 1691 174 526 Gun 2964 | . 14 . . 44 78 140 69 114 27 104 29 45 . 59 108 81 21 12 73 96 63 189 123 55 1061 105 254 Cannon 1997 | . . . . . 3 . . . . 32 47 48 . 36 53 44 11 6 37 239 102 135 154 79 630 69 272 Launcher . | . . . . . . . . . . . . . . . . . . . . . . . . . . . . Special . | . . . . . . . . . . . . . . . . . . . . . . . . . . . . Kinetic 2368 | . . . . 22 41 74 23 40 9 36 4 . . 9 8 12 11 6 37 239 84 251 77 61 842 114 368 Thermal 1614 | . 7 . . . . 1 23 40 . 30 25 46 . 44 100 70 10 6 36 81 81 73 200 41 494 48 158 Explosive . | . . . . . . . . . . . . . . . . . . . . . . . . . . . . Electromagnetic 717 | . 7 . . 22 40 65 23 34 18 70 47 47 . 42 53 43 11 6 37 15 . . . 32 105 . . Entropic 262 | . . . . . . . . . . . . . . . . . . . . . . . . . 250 12 . Robot Hit Streak 101 | . 4 . . 12 18 12 17 19 16 9 11 21 . 13 29 20 15 21 95 101 38 46 38 23 92 77 45 Robot Miss Streak 6 | . 2 . . 2 2 3 3 6 2 6 3 4 . 3 3 6 2 . 1 2 2 2 2 1 2 1 1 Penetration Max 3 | . . . . . . . . . . . . . . . . . 1 1 1 1 . 2 2 1 2 3 1 Secondary Targets 7 | . 1 . . . . 3 . 2 . . . . . . . . . . . . . . . . 1 . . Max Gunslinging Chain 1 | . 1 . . . . 1 . 1 . . . . . . . . . . . . . . . . 1 . . Shots Hit Robots 3499 | . 7 . . 30 57 74 43 91 22 61 49 65 . 52 105 91 25 14 97 256 129 226 206 77 1201 128 393 Core Hits 1422 | . 3 . . 11 28 29 31 50 5 39 9 18 . 27 36 38 7 9 34 121 52 80 75 34 500 57 129 Critical Kills 40 | . . . . . 2 . . . . 1 1 1 . . 1 . . . . . . 1 2 . 30 1 . Critical Parts Destroyed 36 | . . . . . 1 . . . . . . . . . . . . . . . . 2 4 . 23 1 5 Critical Strikes 139 | . . . . . 3 2 . 4 1 1 2 4 . 2 3 3 2 2 9 18 3 7 7 . 58 2 6 Burn 37 | . . . . . . . . 4 . . . 3 . 2 1 3 2 2 8 9 2 . 1 . . . . Meltdown 20 | . . . . . . . . . . 1 1 1 . . 1 . . . . . . . . . 16 . . Destroy 60 | . . . . . 3 . . . . . . . . . . . . . . . . 3 6 . 40 2 6 Blast 14 | . . . . . . . . . . . . . . . . . . . . 9 1 4 . . . . . Corrupt 8 | . . . . . . 2 . . 1 . 1 . . . 1 . . . 1 . . . . . 2 . . Melee Attacks . | . . . . . . . . . . . . . . . . . . . . . . . . . . . . Impact . | . . . . . . . . . . . . . . . . . . . . . . . . . . . . Slashing . | . . . . . . . . . . . . . . . . . . . . . . . . . . . . Piercing . | . . . . . . . . . . . . . . . . . . . . . . . . . . . . Sneak Attacks . | . . . . . . . . . . . . . . . . . . . . . . . . . . . . Combat Hostiles . | . . . . . . . . . . . . . . . . . . . . . . . . . . . . Follow-up Attacks . | . . . . . . . . . . . . . . . . . . . . . . . . . . . . Damage Inflicted 194762 | . 99 . . 414 1217 1621 1013 2638 155 2115 1286 1684 . 1578 3482 3001 882 508 3448 13441 5198 10987 12223 4138 80233 9958 33443 Guns 72617 | . 99 . . 414 758 1221 960 1810 155 986 542 885 . 1087 2212 1487 355 174 1330 1289 1302 4445 3248 1322 33819 3800 8917 Cannons 117963 | . . . . . 16 . . . . 315 744 799 . 491 1229 1514 527 334 2118 10814 3896 6448 8975 2645 46414 6158 24526 Explosions 4126 | . . . . . 443 400 53 828 . 814 . . . . 16 . . . . 1338 . 63 . 171 . . . Melee . | . . . . . . . . . . . . . . . . . . . . . . . . . . . . Ramming 56 | . . . . . . . . . . . . . . . 25 . . . . . . 31 . . . . . Kinetic 106153 | . . . . 214 388 704 179 479 123 328 40 . . 153 62 513 527 334 2118 10814 2578 9220 6305 2150 33765 7181 27978 Thermal 46725 | . 42 . . . . 166 394 896 . 541 443 903 . 853 2088 1254 145 109 643 2096 2620 1673 5918 1054 17528 1894 5465 Explosive 1449 | . . . . . . 234 . 610 . . . . . . . . . . . 371 . 63 . 171 . . . Electromagnetic 13333 | . 57 . . 200 829 517 440 653 32 1246 803 781 . 572 1307 1234 210 65 687 160 . . . 763 2777 . . Impact . | . . . . . . . . . . . . . . . . . . . . . . . . . . . . Slashing . | . . . . . . . . . . . . . . . . . . . . . . . . . . . . Piercing . | . . . . . . . . . . . . . . . . . . . . . . . . . . . . Entropic 27046 | . . . . . . . . . . . . . . . . . . . . . . . . . 26163 883 . Highest Corruption 52 | . . . . . 6 6 6 1 1 10 10 10 10 10 3 6 6 6 6 5 . 6 9 13 52 . 14 Average Corruption 15 | . . . . . 5 6 6 1 1 6 10 10 10 10 2 5 6 6 6 3 . 4 4 10 35 . 10 Corruption Purged 15 | . . . . . . . . . 1 . . . . . . . . . . . . . . . . . 14 Corruption Blocked . | . . . . . . . . . . . . . . . . . . . . . . . . . . . . Effects 770 | . . . . . 12 19 43 1 . 32 28 22 3 24 6 15 11 2 10 14 . 39 23 31 418 . 17 Message Errors 159 | . . . . . 4 5 16 1 . 6 5 4 1 4 2 2 3 1 3 1 . 14 6 9 68 . 4 Matter Fused 139 | . . . . . 4 3 12 . . 10 3 5 1 10 1 1 4 . 2 5 . 6 4 5 60 . 3 Heat Flow Errors 63 | . . . . . . 2 3 . . 4 5 3 . 3 . 2 . . 1 3 . 4 2 3 27 . 1 Energy Discharges 80 | . . . . . . 3 5 . . 3 4 3 . 2 1 4 . 1 . 2 . 5 4 1 41 . 1 Parts Rejected 12 | . . . . . . 1 . . . . . . . . . . . . . . . 1 1 1 8 . . Parts Fused 4 | . . . . . . . . . . . 1 . . . . . . . . . . . . . 3 . . Data Loss (minor) 84 | . . . . . 1 4 4 . . 3 7 3 1 3 . 4 2 . 3 . . 4 . 4 38 . 3 Data Loss (major) 24 | . . . . . . . 3 . . 1 . 2 . . . 1 . . . . . . 1 1 15 . . Misfires 3 | . . . . . . . . . . . . . . . . . 1 . 1 1 . . . . . . . Alerts 22 | . . . . . . . . . . 1 1 1 . . . . 1 . . 1 . 2 2 . 11 . 2 Misdirections 17 | . . . . . . . . . . . . . . 1 . . . . . . . . . 2 14 . . Weapon Failures 163 | . . . . . 3 1 . . . 4 2 1 . 1 2 1 . . . 1 . 3 3 5 133 . 3 Overload Shots . | . . . . . . . . . . . . . . . . . . . . . . . . . . . . Overflow Damage 11366 | . . . . . 18 8 . 133 . 98 26 6 . 15 105 25 46 44 63 719 206 416 858 300 4905 862 2513 Projectiles 10865 | . . . . . . . . . . . 26 6 . 15 105 25 46 44 63 495 206 416 858 280 4905 862 2513 Explosions 501 | . . . . . 18 8 . 133 . 98 . . . . . . . . . 224 . . . 20 . . . Melee . | . . . . . . . . . . . . . . . . . . . . . . . . . . . . Knockbacks 373 | . . . . . . . . . . . . . . . 1 2 5 . 4 37 . 32 29 11 140 23 89 Impact 1 | . . . . . . . . . . . . . . . . . . . . . . 1 . . . . . Kinetic 332 | . . . . . . . . . . . . . . . 1 2 5 . 4 35 . 29 24 9 118 20 85 Secondary 40 | . . . . . . . . . . . . . . . . . . . . 2 . 2 5 2 22 3 4 Self-Inflicted Damage 519 | . . . . . . 145 46 191 . 43 . . . . 10 . . . . . . . . 84 . . . Shots 9 | . . . . . . 3 1 3 . 1 . . . . . . . . . . . . . 1 . . . Rammed 5 | . . . . . . . . . . . . . . . 5 . . . . . . . . . . . . Targets Rammed 7 | . . . . . . . . . . . . . . . 5 . . . . . . 2 . . . . . Kicked 2 | . . . . . . . . . . . . . . . . . . . . . . 2 . . . . . Crushed . | . . . . . . . . . . . . . . . . . . . . . . . . . . . . Highest Temperature 475 | . 7 . . 2 2 205 218 158 12 209 161 234 . 160 60 291 197 112 310 345 105 475 289 135 313 74 301 Average Temperature 60 | . 7 . . 2 2 46 51 55 8 31 42 78 . 30 23 96 102 58 94 45 42 121 69 49 17 31 58 Received Heat Transfer 5207 | . 60 . . 231 252 282 96 246 . 130 81 147 . 81 220 114 . . 159 429 90 255 405 36 1465 84 344 Effects 7 | . . . . . . . . . . . . . . . . . . . . 1 . 5 . . 1 . . Energy Bleed 3 | . . . . . . . . . . . . . . . . . . . . 1 . 2 . . . . . Interference 3 | . . . . . . . . . . . . . . . . . . . . . . 3 . . . . . Matter Decay 1 | . . . . . . . . . . . . . . . . . . . . . . . . . 1 . . Siege Activations . | . . . . . . . . . . . . . . . . . . . . . . . . . . . . Martial Activations . | . . . . . . . . . . . . . . . . . . . . . . . . . . . . Shielding Activations . | . . . . . . . . . . . . . . . . . . . . . . . . . . . . Robots Disrupted 3 | . . . . . 1 . . . . 1 . . . . . . . . . . . 1 . . . . . Combat Hostiles 2 | . . . . . 1 . . . . . . . . . . . . . . . . 1 . . . . . Robots Corrupted 19 | . . . . . . . . 1 . . 3 2 . . 1 4 1 . . 1 . . . 2 3 1 . Combat Hostiles 17 | . . . . . . . . 1 . . 3 2 . . 1 3 1 . . 1 . . . 2 3 . . Parts Fried 55 | . . . . . 2 1 2 3 . 3 7 2 . . 4 5 4 . . 4 . . . 3 14 1 . Impact Corruptions 6 | . . . . . . . . . . . . . . . . . . . . 1 . 1 1 . 2 1 . Robots Melted 21 | . . . . . . . . . . 1 1 2 . . 1 . . . . . . . . . 16 . . Combat Hostiles 18 | . . . . . . . . . . . 1 2 . . 1 . . . . . . . . . 14 . . Parts Melted 97 | . . . . . . . 2 4 . 5 4 2 . 2 6 1 1 . 1 2 6 3 8 . 46 2 2 Heat Transferred 49065 | . 100 . . . . 200 722 1754 . 631 703 1591 . 1258 2960 2220 444 314 1924 3365 2516 1850 5015 646 15127 1591 4134 Parts Sabotaged 7 | . . . . . . . . . . 1 . . . . . . . . . . . . . . 6 . . Parts Stolen 8 | . . . . . . . . . . . 5 . . . . . 3 . . . . . . . . . . Parts Stripped . | . . . . . . . . . . . . . . . . . . . . . . . . . . . . Power Chain Reactions 7 | . . . . . . 2 2 2 . 1 . . . . . . . . . . . . . . . . . Latent Energy Used 589 | . . . . . 341 . . . . 248 . . . . . . . . . . . . . . . . . LE Corruption 11 | . . . . . 6 . . . . 5 . . . . . . . . . . . . . . . . . Alert | -11 -10 -10 -10 -9 -8 -8 -8 -6 -6 -6 -6 -6 -6 -5 -5 -5 -5 -5 -4 -4 -3 -3 -2 -2 -2 -1 -1 ------- Run | Yrd Mat Min Exi Min Mat Sto Rec Fac Was Fac Low Low Dat Pro Fac Upp Upp Zhi Pro Fac Res Tes Res Qua Frg Acc Com Maximum Alert Level 5 | . . . . . 1 1 . 1 . 4 . . . . 2 . . . . 5 4 5 5 4 5 5 5 Low Security (%) 23 | 100 100 100 . 100 41 38 100 77 100 17 . . . . 30 . . . . 10 . . . . . . 50 Level 1 7 | . . . . . 58 61 . 22 . . . . . . 57 . . . . . . . . . . . . Level 2 2 | . . . . . . . . . . 6 . . . . 12 . . . . 19 . . . . . . . Level 3 14 | . . . . . . . . . . 43 . . . . . . . . . 30 . 36 28 5 14 . . Level 4 22 | . . . . . . . . . . 33 . . . . . . . . . 20 99 37 49 94 13 . . Level 5 19 | . . . . . . . . . . . . . . . . . . . . 6 . 26 9 . 48 30 21 High Security 11 | . . . . . . . . . . . . . . . . . . . . 12 . . 12 . 23 69 27 Max Security . | . . . . . . . . . . . . . . . . . . . . . . . . . . . . Peak Influence 7297 | . 50 11 . 50 264 323 130 283 85 1569 . . . . 589 . . . . 2069 1468 1684 1991 1504 7297 5474 4670 Initial 4377 | . . 11 . . 15 90 103 . 85 . . . . . 240 . . . . 107 1100 822 922 1119 825 4377 3503 Average 1670 | . 10 4 . 15 188 216 35 112 28 891 . . . . 260 . . . . 1013 1336 1236 1307 1270 3230 4814 3330 Influence Increases 23076 | . 61 . . 120 384 469 240 525 56 2291 179 200 . 390 913 585 20 5 320 2314 730 1328 1443 670 7409 1147 1277 Destroy 0b10 Robot/C 13040 | . 40 . . 100 200 280 180 340 . 720 120 160 . 320 260 440 20 . 300 900 460 740 720 360 5180 560 640 Destroy 0b10 Robot/NC 610 | . . . . . 20 10 25 20 . 70 10 10 . 15 40 . . 5 10 65 20 40 45 20 120 35 30 Destroy Leader 1954 | . 10 . . 20 56 52 . 82 . 136 20 30 . 40 54 40 . . 10 182 134 86 144 50 566 120 122 Allied During Kill 629 | . . . . . . . . . . 567 29 . . . . . . . . . . . . . . 33 . Successful Hack 94 | . 11 . . . . 11 . 12 . . . . . . 19 . . . . 22 7 12 . . . . . Disable Machine 2040 | . . . . . 30 75 30 45 . 555 . . . . 30 . . . . 285 30 210 30 60 540 45 75 Anti-Garrison Action 600 | . . . . . . . . . . . . . . . . . . . . 150 . . 150 . 150 150 . Destroy Structure 2639 | . . . . . 48 26 5 26 56 213 . . . . 30 . . . . 350 64 210 249 150 673 204 335 Advance Influence 150 | . . . . . . . . . . . . . . . 150 . . . . . . . . . . . . Partial Spotted 75 | . . . . . . . . . . . . . . . . . . . . 15 . . . 15 30 . 15 Lose Combat Pursuer 1245 | . . . . . 30 15 . . . 30 . . . 15 330 105 . . . 345 15 30 105 15 150 . 60 Influence Decreases 18420 | . 31 30 . 80 210 418 505 282 299 722 943 424 581 246 472 497 343 355 150 415 1351 1150 1092 1192 1581 2970 2081 Entered New Map 11365 | . . 19 . . 25 124 162 . 158 . 581 154 581 . 54 217 129 350 . 63 983 640 718 872 644 2920 1971 Time Decay 6545 | . 31 11 . 80 185 294 343 282 121 512 342 270 . 246 368 270 214 5 150 342 368 510 374 310 757 50 110 Lost Part 80 | . . . . . . . . . . . 10 . . . 10 10 . . . 10 . . . 10 30 . . Lost Ally 130 | . . . . . . . . . 20 60 10 . . . 40 . . . . . . . . . . . . Purge Threat 300 | . . . . . . . . . . 150 . . . . . . . . . . . . . . 150 . . Squads Dispatched 190 | . 1 . . . 5 1 . 3 . 10 . . . . 9 . . . . 19 6 10 13 7 82 13 11 Investigation 9 | . . . . . 1 . . . . . . . . . 2 . . . . 2 . 1 1 . 1 . 1 Extermination 25 | . . . . . . . . 1 . 4 . . . . 2 . . . . 1 1 3 2 2 9 . . Reinforcement 23 | . 1 . . . 4 1 . 2 . 3 . . . . 2 . . . . 4 . . 1 2 1 . 2 Assault 125 | . . . . . . . . . . 3 . . . . 2 . . . . 9 5 6 8 3 71 10 8 Garrison 8 | . . . . . . . . . . . . . . . 1 . . . . 3 . . 1 . . 3 . Intercept . | . . . . . . . . . . . . . . . . . . . . . . . . . . . . Searches Triggered . | . . . . . . . . . . . . . . . . . . . . . . . . . . . . Data Miner Redirects 1 | . . . . . . . . . . . . . . . . . . . . . . . . 1 . . . Construction Impeded 1 | . . . . . . . . 1 . . . . . . . . . . . . . . . . . . . Haulers Reinforced 4 | . . . . . . . . . . 2 . . . . . . . . . 1 . . 1 . . . . Active Scanning Responses . | . . . . . . . . . . . . . . . . . . . . . . . . . . . . Cargo Convoy Interrupts . | . . . . . . . . . . . . . . . . . . . . . . . . . . . . Stealth | -11 -10 -10 -10 -9 -8 -8 -8 -6 -6 -6 -6 -6 -6 -5 -5 -5 -5 -5 -4 -4 -3 -3 -2 -2 -2 -1 -1 --------- Run | Yrd Mat Min Exi Min Mat Sto Rec Fac Was Fac Low Low Dat Pro Fac Upp Upp Zhi Pro Fac Res Tes Res Qua Frg Acc Com Distress Signals 21 | . . . . . 2 4 . 1 . 2 . . . . 3 . . . . 1 . 1 1 . 2 . 4 Communications Jammed 201 | . . . . . . . . . . . . . . . . . . . . . 3 15 30 30 116 7 . Distress Signals 189 | . . . . . . . . . . . . . . . . . . . . . . 14 30 28 113 4 . Times Spotted 967 | . 3 . . 4 15 20 7 18 3 35 13 8 . 20 39 25 6 . 13 97 27 48 56 22 372 51 65 Peak Tracking Total 14 | . 2 . . 3 3 5 3 5 2 5 3 4 . 5 11 7 4 . 9 9 6 9 6 5 14 8 7 Tactical Retreats 49 | . . . . . 1 1 . . . 2 . . . 1 8 3 . . . 14 1 2 3 1 9 . 3 Traps | -11 -10 -10 -10 -9 -8 -8 -8 -6 -6 -6 -6 -6 -6 -5 -5 -5 -5 -5 -4 -4 -3 -3 -2 -2 -2 -1 -1 ------- Run | Yrd Mat Min Exi Min Mat Sto Rec Fac Was Fac Low Low Dat Pro Fac Upp Upp Zhi Pro Fac Res Tes Res Qua Frg Acc Com Traps Triggered 40 | . . . . . . 1 . 2 . 7 . . . . 3 . . . . 3 4 1 1 2 15 . 1 Indirectly 4 | . . . . . . . . . . 4 . . . . . . . . . . . . . . . . . Trap Hack Attempts . | . . . . . . . . . . . . . . . . . . . . . . . . . . . . Triggered . | . . . . . . . . . . . . . . . . . . . . . . . . . . . . Disarmed . | . . . . . . . . . . . . . . . . . . . . . . . . . . . . Reprogrammed . | . . . . . . . . . . . . . . . . . . . . . . . . . . . . Reused . | . . . . . . . . . . . . . . . . . . . . . . . . . . . . Traps Extracted . | . . . . . . . . . . . . . . . . . . . . . . . . . . . . Installed . | . . . . . . . . . . . . . . . . . . . . . . . . . . . . Triggered . | . . . . . . . . . . . . . . . . . . . . . . . . . . . . Machines | -11 -10 -10 -10 -9 -8 -8 -8 -6 -6 -6 -6 -6 -6 -5 -5 -5 -5 -5 -4 -4 -3 -3 -2 -2 -2 -1 -1 ---------- Run | Yrd Mat Min Exi Min Mat Sto Rec Fac Was Fac Low Low Dat Pro Fac Upp Upp Zhi Pro Fac Res Tes Res Qua Frg Acc Com Machines Disabled 167 | . . . . . 2 5 3 3 . 37 . . . . 2 . . 1 . 20 2 16 3 4 60 4 5 Max in Single Turn 8 | . . . . . 2 2 3 2 . 6 . . . . 1 . . 1 . 8 1 2 1 2 3 1 2 Garrison Access 6 | . . . . . . . . . . . . . . . 1 . . . . 2 . . 1 . 1 1 . Machines Repaired . | . . . . . . . . . . . . . . . . . . . . . . . . . . . . Machines Dismantled . | . . . . . . . . . . . . . . . . . . . . . . . . . . . . Machines Sabotaged . | . . . . . . . . . . . . . . . . . . . . . . . . . . . . Overloaded Fab Kills . | . . . . . . . . . . . . . . . . . . . . . . . . . . . . Hacking | -11 -10 -10 -10 -9 -8 -8 -8 -6 -6 -6 -6 -6 -6 -5 -5 -5 -5 -5 -4 -4 -3 -3 -2 -2 -2 -1 -1 --------- Run | Yrd Mat Min Exi Min Mat Sto Rec Fac Was Fac Low Low Dat Pro Fac Upp Upp Zhi Pro Fac Res Tes Res Qua Frg Acc Com Machines Accessed 76 | . 2 . 5 . 2 6 8 4 . 5 . . 4 . 3 . 2 7 . 3 4 10 4 3 4 . . Terminals 40 | . 2 . . . 2 5 1 2 . 3 . . . . 2 . . . . 2 3 9 2 3 4 . . Fabricators 2 | . . . . . . . . 1 . . . . . . . . . . . 1 . . . . . . . Repair Stations 2 | . . . . . . 1 . . . . . . . . . . . . . . . 1 . . . . . Recycling Units 9 | . . . . . . . 6 . . 1 . . . . . . . . . . 1 . 1 . . . . Scanalyzers 2 | . . . . . . . . 1 . 1 . . . . . . . . . . . . . . . . . Garrison Access 2 | . . . . . . . . . . . . . . . 1 . . . . . . . 1 . . . . Total Hacks 254 | . 6 . 50 . 5 19 22 8 . 13 . . 33 . 7 . 7 29 . 6 7 16 6 10 10 . . Successful 180 | . 2 . 50 . 1 9 17 2 . 5 . . 33 . 2 . 7 29 . 4 2 6 2 2 7 . . Failed 74 | . 4 . . . 4 10 5 6 . 8 . . . . 5 . . . . 2 5 10 4 8 3 . . Catastrophic 20 | . 1 . . . 2 1 1 2 . 3 . . . . 2 . . . . . 1 2 3 . 2 . . Database Lockouts . | . . . . . . . . . . . . . . . . . . . . . . . . . . . . Manual 57 | . 4 . 6 . 2 6 4 4 . 10 . . . . 1 . . . . 1 3 6 1 5 4 . . Terminals 98 | . 6 . . . 5 16 4 5 . 11 . . . . 6 . . . . 3 5 14 3 10 10 . . Fabricators 5 | . . . . . . . . 2 . . . . . . . . . . . 3 . . . . . . . Repair Stations 5 | . . . . . . 3 . . . . . . . . . . . . . . . 2 . . . . . Recycling Units 21 | . . . . . . . 16 . . 1 . . . . . . . . . . 2 . 2 . . . . Scanalyzers 2 | . . . . . . . . 1 . 1 . . . . . . . . . . . . . . . . . Garrison Access 2 | . . . . . . . . . . . . . . . 1 . . . . . . . 1 . . . . Terminal Hacks 149 | . 1 . 50 . . 6 2 . . 2 . . 33 . 1 . 7 29 . 2 2 3 2 2 7 . . Record 92 | . . . 49 . . 1 . . . . . . 11 . . . 6 17 . . 1 1 1 . 5 . . Part Schematic 17 | . . . . . . . . . . . . . 13 . . . . 4 . . . . . . . . . Robot Schematic 6 | . . . . . . . . . . . . . 6 . . . . . . . . . . . . . . Robot Analysis 8 | . . . . . . 2 . . . . . . . . 1 . . 4 . 1 . . . . . . . Prototype ID Bank 8 | . . . . . . . . . . . . . 3 . . . . 4 . . . 1 . . . . . Open Door 5 | . . . . . . 3 . . . . . . . . . . 1 . . . . 1 . . . . . Branch Access Points 4 | . 1 . . . . . . . . 1 . . . . . . . . . 1 1 . . . . . . Terminal Index 1 | . . . . . . . . . . . . . . . . . . . . . . . 1 . . . . Alert Level 1 | . . . . . . . . . . . . . . . . . . . . . . . . 1 . . . Unreport Threat 2 | . . . . . . . . . . 1 . . . . . . . . . . . . . . 1 . . Security Status 1 | . . . . . . . . . . . . . . . . . . . . . . . . 1 . . . Proto ID Catalog 2 | . . . 1 . . . . . . . . . . . . . . . . . . . . . 1 . . Release Object 2 | . . . . . . . 2 . . . . . . . . . . . . . . . . . . . . Fabricator Hacks 3 | . . . . . . . . 1 . . . . . . . . . . . 2 . . . . . . . Network Status 1 | . . . . . . . . 1 . . . . . . . . . . . . . . . . . . . Load Schematic 1 | . . . . . . . . . . . . . . . . . . . . 1 . . . . . . . Build 1 | . . . . . . . . . . . . . . . . . . . . 1 . . . . . . . Repair Station Hacks 4 | . . . . . . 2 . . . . . . . . . . . . . . . 2 . . . . . Scan Component 2 | . . . . . . 1 . . . . . . . . . . . . . . . 1 . . . . . Repair 2 | . . . . . . 1 . . . . . . . . . . . . . . . 1 . . . . . Recycling Unit Hacks 15 | . . . . . . . 14 . . 1 . . . . . . . . . . . . . . . . . Process 3 | . . . . . . . 3 . . . . . . . . . . . . . . . . . . . . Report Inventory 2 | . . . . . . . 2 . . . . . . . . . . . . . . . . . . . . Retrieve Matter 5 | . . . . . . . 5 . . . . . . . . . . . . . . . . . . . . Retrieve Components 5 | . . . . . . . 4 . . 1 . . . . . . . . . . . . . . . . . Scanalyzer 1 | . . . . . . . . . . 1 . . . . . . . . . . . . . . . . . Retrieve Study 1 | . . . . . . . . . . 1 . . . . . . . . . . . . . . . . . Garrison Access Hacks . | . . . . . . . . . . . . . . . . . . . . . . . . . . . . Unauthorized Hacks 8 | . 1 . . . 1 1 1 1 . 1 . . . . 1 . . . . . . 1 . . . . . Terminals 7 | . 1 . . . 1 1 1 1 . 1 . . . . . . . . . . . 1 . . . . . Botnet 7 | . 1 . . . 1 1 1 1 . 1 . . . . . . . . . . . 1 . . . . . Fabricators . | . . . . . . . . . . . . . . . . . . . . . . . . . . . . Repair Stations . | . . . . . . . . . . . . . . . . . . . . . . . . . . . . Recycling Units . | . . . . . . . . . . . . . . . . . . . . . . . . . . . . Scanalyzers . | . . . . . . . . . . . . . . . . . . . . . . . . . . . . Garrison Access 1 | . . . . . . . . . . . . . . . 1 . . . . . . . . . . . . Reprogram 1 | . . . . . . . . . . . . . . . 1 . . . . . . . . . . . . Data Cores Recovered 5 | . . . . . . . . . . . . . . . 1 . . . . 2 1 1 . . . . . Used 2 | . . . . . . . . . . . . . . . . . . . . 2 . . . . . . . Hacking Detections 43 | . 2 . . . 2 4 3 3 . 4 . . . . 2 . . . . 3 4 6 4 3 3 . . Full Trace Events 6 | . . . . . 1 . . . . . . . . . 1 . . . . 1 . 1 1 . 1 . . Feedback Events 1 | . . . . . . . . . . . . . . . . . . . . . . 1 . . . . . Corruption 1 | . . . . . . . . . . . . . . . . . . . . . . 1 . . . . . Feedback Blocked . | . . . . . . . . . . . . . . . . . . . . . . . . . . . . Robot Schematics Acquired 12 | . . . . . . . . . . . . . 6 . . . . . . . . . . . 6 . . Robots Built . | . . . . . . . . . . . . . . . . . . . . . . . . . . . . Authchips . | . . . . . . . . . . . . . . . . . . . . . . . . . . . . Time . | . . . . . . . . . . . . . . . . . . . . . . . . . . . . Total Robot Build Rating . | . . . . . . . . . . . . . . . . . . . . . . . . . . . . Part Schematics Acquired 36 | . . . . . . . . . . . . . 13 . . . . 4 . . . 3 . 4 12 . . Parts Built 1 | . . . . . . . . . . . . . . . . . . . . 1 . . . . . . . Authchips . | . . . . . . . . . . . . . . . . . . . . . . . . . . . . Time 117 | . . . . . . . . . . . . . . . . . . . . 117 . . . . . . . Total Part Build Rating 7 | . . . . . . . . . . . . . . . . . . . . 7 . . . . . . . Part Studies Acquired 1 | . . . . . . . . . . 1 . . . . . . . . . . . . . . . . . Parts Repaired 2 | . . . . . . 1 . . . . . . . . . . . . . . . 1 . . . . . Time 72 | . . . . . . 38 . . . . . . . . . . . . . . . 34 . . . . . Parts Recycled . | . . . . . . . . . . . . . . . . . . . . . . . . . . . . Recycled Matter 13 | . . . . . . . 13 . . . . . . . . . . . . . . . . . . . . Retrieved Matter 13 | . . . . . . . 13 . . . . . . . . . . . . . . . . . . . . Retrieved Components 8 | . . . . . . . 6 . . 2 . . . . . . . . . . . . . . . . . Parts Scanalyzed . | . . . . . . . . . . . . . . . . . . . . . . . . . . . . Part Schematics Acquired . | . . . . . . . . . . . . . . . . . . . . . . . . . . . . Parts Damaged . | . . . . . . . . . . . . . . . . . . . . . . . . . . . . Bothacking | -11 -10 -10 -10 -9 -8 -8 -8 -6 -6 -6 -6 -6 -6 -5 -5 -5 -5 -5 -4 -4 -3 -3 -2 -2 -2 -1 -1 ------------ Run | Yrd Mat Min Exi Min Mat Sto Rec Fac Was Fac Low Low Dat Pro Fac Upp Upp Zhi Pro Fac Res Tes Res Qua Frg Acc Com Used RIF Installer . | . . . . . . . . . . . . . . . . . . . . . . . . . . . . Robots Hacked . | . . . . . . . . . . . . . . . . . . . . . . . . . . . . Non-combat . | . . . . . . . . . . . . . . . . . . . . . . . . . . . . Combat . | . . . . . . . . . . . . . . . . . . . . . . . . . . . . Robot Hacks Applied . | . . . . . . . . . . . . . . . . . . . . . . . . . . . . Relay Couplers Released 3 | . . . . . . . . . . . . . . . . . . . . 1 . . 1 . 1 . . Machine Destruction 3 | . . . . . . . . . . . . . . . . . . . . 1 . . 1 . 1 . . Fabnet Peak Effective % . | . . . . . . . . . . . . . . . . . . . . . . . . . . . . Robots Rewired . | . . . . . . . . . . . . . . . . . . . . . . . . . . . . Allies Hacked 2 | . . . . . . . . . . 2 . . . . . . . . . . . . . . . . . Hacks Repelled . | . . . . . . . . . . . . . . . . . . . . . . . . . . . . Allies | -11 -10 -10 -10 -9 -8 -8 -8 -6 -6 -6 -6 -6 -6 -5 -5 -5 -5 -5 -4 -4 -3 -3 -2 -2 -2 -1 -1 -------- Run | Yrd Mat Min Exi Min Mat Sto Rec Fac Was Fac Low Low Dat Pro Fac Upp Upp Zhi Pro Fac Res Tes Res Qua Frg Acc Com Total Allies 24 | . . . . . . . . . 18 . . . . . 3 . . . . . . . . . . 3 . Largest Group 18 | . . . . . . . . . 18 9 5 . . . 3 . . . . . . . . . . 3 . Highest-Rated Group 656 | . . . . . . . . . 656 380 183 . . . 87 . . . . . . . . . . 379 . Highest-Rated Ally 135 | . . . . . . . . . 50 50 46 . . . 29 . . . . . . . . . . 135 . Total Orders . | . . . . . . . . . . . . . . . . . . . . . . . . . . . . Ally Attacks 252 | . . . . . . . . . 87 131 29 . . . 3 . . . . . . . . . . 2 . Total Damage 9222 | . . . . . . . . . 4376 4121 655 . . . 40 . . . . . . . . . . 30 . Kills 44 | . . . . . . . . . 14 28 2 . . . . . . . . . . . . . . . . Allies Corrupted 3 | . . . . . . . . . . 1 2 . . . . . . . . . . . . . . . . Allies Melted 1 | . . . . . . . . . . . . . . . . . . . . . . . . . . . 1 Intel | -11 -10 -10 -10 -9 -8 -8 -8 -6 -6 -6 -6 -6 -6 -5 -5 -5 -5 -5 -4 -4 -3 -3 -2 -2 -2 -1 -1 ------- Run | Yrd Mat Min Exi Min Mat Sto Rec Fac Was Fac Low Low Dat Pro Fac Upp Upp Zhi Pro Fac Res Tes Res Qua Frg Acc Com Active Infowar (turns) 15510 | . . . 90 309 382 645 1261 668 369 1457 3 . . . . . . . . 650 851 1396 969 697 5425 335 3 Optics 2 | . . . . . . . . . . . . . . . . . . . . . . 2 . . . . . Sensors 7092 | . . . . . . . . . 281 1457 3 . . . . . . . . 650 851 1389 852 695 914 . . T.N.C. 4449 | . . . 90 309 382 645 1261 668 369 725 . . . . . . . . . . . . . . . . . Cloaking 295 | . . . . . . . . . . . . . . . . . . . . . . . . . 295 . . Jamming 9653 | . . . . . . . . . . . . . . . . . . . . . 844 1381 969 697 5424 335 3 ECM 1 | . . . . . . . . . . . . . . . . . . . . . . 1 . . . . . Robot Analysis Total 8 | . . . . . . 2 . . . . . . . . 1 . . 4 . 1 . . . . . . . Derelict Logs Recovered 11 | . . 2 . 1 . . . . . . . 2 . 2 . 1 2 . 1 . . . . . . . . Drone Launches . | . . . . . . . . . . . . . . . . . . . . . . . . . . . . Drone Recoveries . | . . . . . . . . . . . . . . . . . . . . . . . . . . . . Exploration | -11 -10 -10 -10 -9 -8 -8 -8 -6 -6 -6 -6 -6 -6 -5 -5 -5 -5 -5 -4 -4 -3 -3 -2 -2 -2 -1 -1 ------------- Run | Yrd Mat Min Exi Min Mat Sto Rec Fac Was Fac Low Low Dat Pro Fac Upp Upp Zhi Pro Fac Res Tes Res Qua Frg Acc Com Turns Passed 22225 | 53 141 54 756 309 382 645 1261 668 369 1457 772 582 85 730 857 590 443 124 359 865 851 1396 995 698 5429 335 1019 Spaces Moved 19143 | 51 130 57 837 241 256 426 921 377 274 1105 588 424 78 558 763 839 850 176 476 960 1234 1736 943 587 3327 315 614 Core 1 | 1 . . . . . . . . . . . . . . . . . . . . . . . . . . . Treads 2281 | . . . . . . . . . . . . . . . . 518 850 176 476 144 . 117 . . . . . Legs 4499 | . . . . . . 21 728 130 170 . . . . . 151 . . . . . . 635 178 458 1099 315 614 Wheels 2412 | 50 130 57 837 241 256 401 193 247 . . . . . . . . . . . . . . . . . . . Hover 7167 | . . . . . . 2 . . 104 1105 588 424 78 558 612 321 . . . 431 . . 765 129 2050 . . Flight 2783 | . . . . . . 2 . . . . . . . . . . . . . 385 1234 984 . . 178 . . Fastest Speed 34 | 50 90 90 90 90 90 90 106 110 110 110 110 110 110 110 57 46 46 46 46 39 39 34 55 55 51 51 51 Average Speed 77 | 85 90 90 90 90 90 93 122 129 110 110 110 110 110 110 83 50 46 46 46 43 44 46 56 79 89 51 73 Slowest Speed 320 | 95 90 90 90 90 90 320 190 160 110 110 110 110 110 110 110 57 46 46 46 46 88 83 64 104 150 51 100 Overloaded Moves . | . . . . . . . . . . . . . . . . . . . . . . . . . . . . Propulsion Burnouts . | . . . . . . . . . . . . . . . . . . . . . . . . . . . . Robots Hopped 6 | . . . . . . . . . . . . . . . . . . . . 1 1 4 . . . . . Potential Cave-ins 5 | . . . . . . . . . . . . . . . . . . . . . . 5 . . . . . Cave-ins Triggered . | . . . . . . . . . . . . . . . . . . . . . . . . . . . . Teleports 47 | . . . . . . . . . . . . . . . . . . . . . . . . . 25 11 11 Exploration Rate (%) 52 | 5 26 14 93 50 25 52 92 14 90 34 78 66 71 64 27 84 92 62 74 30 35 98 21 57 77 11 30 Regions Visited 27 Branch Regions 17 Pre-discovered Areas 9 | . . . 1 1 . . . . . . . . 1 2 . . 1 3 . . . . . . . . . Known Exits Taken 20 | . 1 . . 1 1 . . . . 1 1 1 1 1 1 1 1 1 1 1 1 1 1 1 1 1 . Unknown Exits Taken 5 | 1 . 1 1 . . 1 1 . . . . . . . . . . . . . . . . . . . . Scrap Searched 26 | . . 1 . 1 . . . . . . 2 10 . 5 . 3 2 . 2 . . . . . . . . Spaces Dug 194 | . . . . . . . . . . . . . . . 4 2 . . . 56 11 48 34 15 4 . 20 Terrain Destroyed 1643 | . . . . . 56 26 7 23 . 183 . . . 10 16 19 8 1 26 207 35 195 123 59 374 90 185 Melee . | . . . . . . . . . . . . . . . . . . . . . . . . . . . . Projectile 1167 | . . . . . . . . . . . . . . 10 16 19 8 1 26 82 35 160 123 38 374 90 185 AOE 476 | . . . . . 56 26 7 23 . 183 . . . . . . . . . 125 . 35 . 21 . . . Terrain Rammed . | . . . . . . . . . . . . . . . . . . . . . . . . . . . . Walls Destroyed . | . . . . . . . . . . . . . . . . . . . . . . . . . . . . Machines Disabled . | . . . . . . . . . . . . . . . . . . . . . . . . . . . . Actions | -11 -10 -10 -10 -9 -8 -8 -8 -6 -6 -6 -6 -6 -6 -5 -5 -5 -5 -5 -4 -4 -3 -3 -2 -2 -2 -1 -1 --------- Run | Yrd Mat Min Exi Min Mat Sto Rec Fac Was Fac Low Low Dat Pro Fac Upp Upp Zhi Pro Fac Res Tes Res Qua Frg Acc Com Total 23363 | 57 138 59 840 288 329 574 1010 485 322 1237 650 477 77 609 863 938 879 208 557 1214 1444 2144 1224 723 4728 392 897 Wait 1147 | . . . . 4 21 50 41 30 10 20 9 5 . 5 23 17 6 1 5 29 64 198 115 29 402 20 43 Move 19105 | 50 129 56 836 240 255 425 920 377 273 1104 587 423 77 557 762 838 849 175 475 957 1231 1727 942 586 3326 314 614 Hop 6 | . . . . . . . . . . . . . . . . . . . . 1 1 4 . . . . . Pick Up 27 | 1 . 1 1 1 . . . 1 2 1 1 . . . . . 1 3 . . 1 3 . . 9 . 1 Fast Attach 101 | 6 2 . 1 . 1 2 3 . . 4 5 . . . 3 1 6 3 . 1 4 6 5 3 43 . 2 Attach 6 | . . . . . . . . . 1 . 1 . . . . . . 1 . . 1 . . . 2 . . Detach 6 | . . . . . . . . . . . . . . . . . 1 . . . 1 2 . . 2 . . Swap 126 | . . 1 . . 4 16 1 . 5 4 . 2 . . 1 . 2 3 1 2 2 20 1 3 39 . 19 Drop 70 | . . 1 2 . 1 2 4 3 1 6 . . . 1 1 1 1 5 1 1 6 6 2 3 21 . 1 Fire 1429 | . 7 . . 22 38 47 23 40 9 52 26 25 . 27 53 44 11 6 37 127 58 115 87 37 395 35 108 Melee . | . . . . . . . . . . . . . . . . . . . . . . . . . . . . Ram 5 | . . . . . . . . . . . . . . . 5 . . . . . . . . . . . . Kick 2 | . . . . . . . . . . . . . . . . . . . . . . 2 . . . . . Crush . | . . . . . . . . . . . . . . . . . . . . . . . . . . . . Escape Stasis 119 | . . . . . . 7 . . . 2 . . . . 1 . . . . . 31 . . . 78 . . Rewire . | . . . . . . . . . . . . . . . . . . . . . . . . . . . . Trap . | . . . . . . . . . . . . . . . . . . . . . . . . . . . . Miscellaneous 1214 | . . . . 21 9 25 18 34 21 44 21 22 . 19 14 37 2 11 38 96 44 61 72 62 411 23 109 Route ------- -11/Scrapyard -10/Materials (discovered 2 exits: [*Mat] / *Min) -10/Mines -10/Exiles (discovered 2 exits: [*Min x2]) -9/Mines -8/Materials -8/Storage -8/Recycling -6/Factory -6/Waste -6/Factory (discovered 3 exits: *Fac / *Low x2) -6/Lower Caves -6/Lower Caves (discovered 2 exits: *Fac / *Dat) -6/Data Miner -5/Proximity Caves -5/Factory (discovered 2 exits: *Upp x2) -5/Upper Caves -5/Upper Caves (discovered 2 exits: *Fac / *Zhi) -5/Zhirov -4/Proximity Caves -4/Factory (discovered 8 exits: *Res x4 / *Upp x2 / Ext x2) -3/Research (discovered 4 exits: *Res / *Arm / *Tes x2) -3/Testing -2/Research (discovered 2 exits: *Acc / *Qua) -2/Quarantine (discovered 2 exits: *Sec / *Frg) -2/Protoforge -1/Access (discovered 2 exits: Sur / *Com) -1/Command (discovered 2 exits: Sur x2) History --------- Turn | Location | Event 2 | -11/Scrapyard | Upgraded with Power slot (x1) 2 | -11/Scrapyard | Upgraded with Propulsion slot (x1) 2 | -11/Scrapyard | Upgraded with Utility slot (x1) 2 | -11/Scrapyard | Upgraded with Weapon slot (x1) 21 | -11/Scrapyard | Discovered new exit (range 16) 54 | -11/Scrapyard | Entered Materials 151 | -10/Materials | Identified exit to Mines 179 | -10/Materials | Discovered new exit (range 11) 195 | -10/Materials | Entered Mines 199 | -10/Mines | Learned Materials stockpile data 208 | -10/Mines | A weapon hastily lodged in a ceiling crevice suddenly fell to the ground 244 | -10/Mines | Deemed a non-threat by the Exiles lab entrance 244 | -10/Mines | Discovered new exit (range 5) 249 | -10/Mines | Entered Exiles 264 | -10/Exiles | Discovered new exit (range 15) 273 | -10/Exiles | Met 8R-AWN 286 | -10/Exiles | Met EX-HEX 309 | -10/Exiles | Build established: Mutant 338 | -10/Exiles | Met EX-DEC 371 | -10/Exiles | Met EX-BIN 514 | -10/Exiles | Learned location of Zion (-7) 550 | -10/Exiles | Visited The Gauntlet 754 | -10/Exiles | Discovered new exit (range 10) 883 | -10/Exiles | Aligned with FarCom system 884 | -10/Exiles | Given EX-Vault access code 909 | -10/Exiles | Opened EX-Vault 915 | -10/Exiles | Found Modified TNC 920 | -10/Exiles | Found Latent Energy Streamer 938 | -10/Exiles | Warned to stay clear of 0b10 Research branches 950 | -10/Exiles | Exiles lab attacked by MAIN.C 1005 | -10/Exiles | Stole two prototypes: Modified TNC, Latent Energy Streamer 1005 | -10/Exiles | Entered Mines 1007 | -9/Mines | Reached level 2 1040 | -9/Mines | Met a Derelict bent on vengeance 1187 | -9/Mines | Learned location of Storage (-8) 1192 | -9/Mines | Found a damaged Exp. Sensor Array with a note attached 1194 | -9/Mines | Found Prototype Device 1203 | -9/Mines | Identified exit to Materials 1314 | -9/Mines | Entered Materials 1315 | -8/Materials | Identified exit to Storage 1316 | -8/Materials | Reached level 3 1469 | -8/Materials | Reached level 4 1530 | -8/Materials | Core integrity fell below 50% 1582 | -8/Materials | Upgraded with Weapon slot (x1) 1696 | -8/Materials | Entered Storage 1698 | -8/Storage | FarCom data flow suspended 1698 | -8/Storage | Reached level 5 1744 | -8/Storage | Repaired Minigun 1805 | -8/Storage | Upgraded with Utility slot (x1) 2002 | -8/Storage | Reached level 6 2098 | -8/Storage | Build established: Tank 2270 | -8/Storage | Used back door to open Recycling access 2270 | -8/Storage | Discovered new exit (range 5) 2341 | -8/Storage | Entered Recycling 2343 | -8/Recycling | Reached level 7 2578 | -8/Recycling | Discovered new exit (range 15) 2695 | -8/Recycling | Upgraded with Utility slot (x2) 2849 | -8/Recycling | Build established: Hacker-Tank 2937 | -8/Recycling | Scanned before Scraplab entrance 2955 | -8/Recycling | Entered Scraplab 2965 | -8/Recycling | Angered Scraplab inhabitants 2968 | -8/Recycling | Found Prototype Device 2968 | -8/Recycling | Identified Scrap Engine 3602 | -8/Recycling | Entered Factory 3604 | -6/Factory | Reached level 8 3673 | -6/Factory | Reached level 9 3944 | -6/Factory | Upgraded with Propulsion slot (x1) 4118 | -6/Factory | Reached level 10 4157 | -6/Factory | Core integrity fell below 50% 4270 | -6/Factory | Sucked down chute 4270 | -6/Factory | Entered Waste 4305 | -6/Waste | Spotted C-40 Crusher 4344 | -6/Waste | Warlord forces began an assault 4356 | -6/Waste | Identified Exp. Sensor Array 4380 | -6/Waste | Spotted C-40 Crusher 4389 | -6/Waste | Spotted C-40 Crusher 4406 | -6/Waste | Crushed by Compactor (0 parts destroyed, 1 dropped) 4415 | -6/Waste | Allies destroyed C-40 Crusher 4416 | -6/Waste | Allies destroyed C-40 Crusher 4431 | -6/Waste | Spotted C-40 Crusher 4432 | -6/Waste | Lost 9 allies 4469 | -6/Waste | Allies destroyed C-40 Crusher 4495 | -6/Waste | Build established: Hacker-Construct 4565 | -6/Waste | Discovered new exit (range 15) 4639 | -6/Waste | Entered Factory 4639 | -6/Factory | Accompanied by 9 allies 4766 | -6/Factory | Reached level 11 4889 | -6/Factory | Reached level 12 4889 | -6/Factory | Reached level 13 4905 | -6/Factory | Identified exit to Lower Caves 5019 | -6/Factory | Upgraded with Utility slot (x2) 5055 | -6/Factory | Reached level 14 5339 | -6/Factory | First assault squad dispatched 5393 | -6/Factory | Upgraded with Weapon slot (x1) 5410 | -6/Factory | P-60 Hacker assimilated allied QY-TJY(d) 5424 | -6/Factory | Reached level 15 5839 | -6/Factory | Reached level 16 5912 | -6/Factory | System corruption reached 10% 6044 | -6/Factory | Discovered new exit (range 10) 6073 | -6/Factory | Reached level 17 6096 | -6/Factory | Entered Lower Caves 6096 | -6/Lower Caves | Accompanied by 5 allies 6096 | -6/Lower Caves | Spotted A9-ERD(f) 6096 | -6/Lower Caves | Spotted NX-E8N(f) 6098 | -6/Lower Caves | Encountered a Master Thief 6098 | -6/Lower Caves | Encountered a Master Thief 6099 | -6/Lower Caves | Adv. Recalibrator stolen by Master Thief 6099 | -6/Lower Caves | Exp. Sensor Array stolen by Master Thief 6101 | -6/Lower Caves | Destroyed NX-E8N(f) 6102 | -6/Lower Caves | Spotted UQ-4JV(f) 6103 | -6/Lower Caves | Encountered a Master Thief 6105 | -6/Lower Caves | Hrd. Heavy Armor Plating stolen by Master Thief 6859 | -6/Lower Caves | Discovered new exit (range 8) 6866 | -6/Lower Caves | Identified exit to Lower Caves 6868 | -6/Lower Caves | Entered another Lower Caves area 6870 | -6/Lower Caves | Reached level 18 7038 | -6/Lower Caves | Discovered new exit (range 12) 7053 | -6/Lower Caves | Identified exit to Factory 7102 | -6/Lower Caves | Learned Factory emergency access door positions 7232 | -6/Lower Caves | Spotted B-75 Beast 7253 | -6/Lower Caves | Destroyed B-75 Beast 7321 | -6/Lower Caves | Learned 4 Factory zone layouts 7359 | -6/Lower Caves | Discovered new exit (range 17) 7376 | -6/Lower Caves | Identified exit to Data Miner 7450 | -6/Lower Caves | Entered Data Miner 7450 | -6/Data Miner | Discovered new exit (range 6) 7469 | -6/Data Miner | Met Data Miner 7490 | -6/Data Miner | Acquired the access code to Warlord's prototype stash 7490 | -6/Data Miner | Learned location of Section 7 (-2) 7510 | -6/Data Miner | Received God Mode back door access code from Data Miner 7533 | -6/Data Miner | Identified exit to Proximity Caves 7535 | -6/Data Miner | Entered Proximity Caves 7537 | -5/Proximity Caves | Reached level 19 7627 | -5/Proximity Caves | Spotter reported a threat 7632 | -5/Proximity Caves | Spotted B-75 Beast 7710 | -5/Proximity Caves | Destroyed B-75 Beast 7895 | -5/Proximity Caves | Reached level 20 8018 | -5/Proximity Caves | Attracted the attention of an 0b10 checkpoint 8136 | -5/Proximity Caves | Discovered exit to Factory (range 7) 8265 | -5/Proximity Caves | Entered Factory 8267 | -5/Factory | Reached level 21 8467 | -5/Factory | Discovered new exit (range 11) 8855 | -5/Factory | Upgraded with Utility slot (x1) 8870 | -5/Factory | Garrison activated, responded to threat 8882 | -5/Factory | Core integrity fell below 50% 8904 | -5/Factory | Lost 3 allies 8993 | -5/Factory | Discovered new exit (range 17) 9064 | -5/Factory | Destroyed 7 combat bots 9069 | -5/Factory | Core integrity fell below 20% 9120 | -5/Factory | Identified exit to Upper Caves 9122 | -5/Factory | Entered Upper Caves 9138 | -5/Upper Caves | Spotted B-75 Beast 9147 | -5/Upper Caves | Destroyed B-75 Beast 9204 | -5/Upper Caves | Attracted the attention of an 0b10 outpost 9247 | -5/Upper Caves | Reached level 22 9271 | -5/Upper Caves | Destroyed 8 combat bots 9354 | -5/Upper Caves | Learned Factory stockpile data 9517 | -5/Upper Caves | Build established: Construct 9706 | -5/Upper Caves | Discovered new exit (range 14) 9712 | -5/Upper Caves | Identified exit to Upper Caves 9712 | -5/Upper Caves | Entered another Upper Caves area 9723 | -5/Upper Caves | Discovered new exit (range 7) 9725 | -5/Upper Caves | Identified exit to Factory 9878 | -5/Upper Caves | Learned location of 2 exits from Factory 9884 | -5/Upper Caves | Learned Factory interactive machine intel 10067 | -5/Upper Caves | Spotted MS-G23(f) 10067 | -5/Upper Caves | Spotted 7U-QM3(f) 10067 | -5/Upper Caves | Spotted KK-TN8(f) 10067 | -5/Upper Caves | Spotted L9-KD9(f) 10069 | -5/Upper Caves | Encountered a Master Thief 10069 | -5/Upper Caves | Encountered a Master Thief 10069 | -5/Upper Caves | Encountered a Master Thief 10069 | -5/Upper Caves | Encountered a Master Thief 10070 | -5/Upper Caves | Adv. Recalibrator stolen by Master Thief 10071 | -5/Upper Caves | Destroyed L9-KD9(f) 10073 | -5/Upper Caves | Destroyed MS-G23(f) 10077 | -5/Upper Caves | Imp. Focal Shield stolen by Master Thief 10078 | -5/Upper Caves | Imp. Weapon Cycler stolen by Master Thief 10082 | -5/Upper Caves | Destroyed KK-TN8(f) 10088 | -5/Upper Caves | Spotted WU-04N(f) 10089 | -5/Upper Caves | Encountered a Master Thief 10094 | -5/Upper Caves | Destroyed WU-04N(f) 10120 | -5/Upper Caves | Entered an active Warlord outpost 10124 | -5/Upper Caves | Learned location of 1 exit from Research 10124 | -5/Upper Caves | Learned Factory security intel 10124 | -5/Upper Caves | Learned Armory trap positions 10131 | -5/Upper Caves | Upgraded with Utility slot (x1) 10144 | -5/Upper Caves | Discovered new exit (range 5) 10145 | -5/Upper Caves | Identified exit to Zhirov 10155 | -5/Upper Caves | Entered Zhirov 10155 | -5/Zhirov | Discovered new exit (range 3) 10164 | -5/Zhirov | Met Zhirov 10174 | -5/Zhirov | Learned location of Quarantine (-2) 10174 | -5/Zhirov | Learned location of Testing (-3) 10174 | -5/Zhirov | Learned location of Command (-1) 10181 | -5/Zhirov | Zhirov requested help retrieving the SGEMP Prototype 10190 | -5/Zhirov | Found Alien Artifact 10190 | -5/Zhirov | Identified Integrated Dissipator 10190 | -5/Zhirov | Installed Integrated Dissipator, increased core heat dissipation (+20) 10203 | -5/Zhirov | Found Alien Artifact 10278 | -5/Zhirov | Identified exit to Proximity Caves 10279 | -5/Zhirov | Entered Proximity Caves 10281 | -4/Proximity Caves | Reached level 23 10413 | -4/Proximity Caves | Destroyed 9 combat bots 10508 | -4/Proximity Caves | Attracted the attention of an 0b10 checkpoint 10529 | -4/Proximity Caves | Spotted B-86 Titan 10557 | -4/Proximity Caves | Reached level 24 10557 | -4/Proximity Caves | Destroyed B-86 Titan 10638 | -4/Proximity Caves | Entered Factory 10639 | -4/Factory | Identified exit to Upper Caves 10639 | -4/Factory | Identified exit to Research 10642 | -4/Factory | Loaded intel: 56 interactive machine locations 10677 | -4/Factory | Identified exit to Extension 10699 | -4/Factory | Assembled infested Garrison Access 10732 | -4/Factory | Reached level 25 10759 | -4/Factory | Destroyed 10 combat bots 10869 | -4/Factory | Discovered exit to Research (range 16) 10956 | -4/Factory | Garrison activated, responded to threat 11301 | -4/Factory | Reached level 26 11304 | -4/Factory | Discovered exit to Research (range 17) 11316 | -4/Factory | Garrison activated, responded to threat 11388 | -4/Factory | First assault squad dispatched 11399 | -4/Factory | High security lockdown imminent 11405 | -4/Factory | Fabricated Imp. Arc Thrower? 11440 | -4/Factory | Discovered exit to Research (range 18) 11479 | -4/Factory | High security lockdown engaged 11503 | -4/Factory | Entered Research 11504 | -3/Research | Identified exit to Research 11505 | -3/Research | Reached level 27 11508 | -3/Research | Upgraded with Utility slot (x1) 11519 | -3/Research | Destroyed 13 combat bots 11573 | -3/Research | Discovered new exit (range 17) 11589 | -3/Research | Identified exit to Armory 11744 | -3/Research | Spotted B-86 Titan 11753 | -3/Research | First assault squad dispatched 11754 | -3/Research | Destroyed B-86 Titan 11779 | -3/Research | Upgraded with Utility slot (x1) 11855 | -3/Research | Reached level 28 12064 | -3/Research | Found Adv. EM Shield 12302 | -3/Research | Identified exit to Testing 12313 | -3/Research | Found Adv. Powered Armor 12354 | -3/Research | Entered Testing 12390 | -3/Testing | Found Lgt. Regenerative Plating 12393 | -3/Testing | Found Prototype Protection 12393 | -3/Testing | Identified Med. Regenerative Plating 12604 | -3/Testing | First assault squad dispatched 12669 | -3/Testing | Spotted Striker 12684 | -3/Testing | Build established: Hacker-Construct 12702 | -3/Testing | Spotted Striker 12714 | -3/Testing | Destroyed Striker 12719 | -3/Testing | Destroyed Striker 12728 | -3/Testing | Spotted Alpha 7 12751 | -3/Testing | Core integrity fell below 50% 12754 | -3/Testing | Destroyed Alpha 7 12779 | -3/Testing | Found Prototype Device 12779 | -3/Testing | Identified Exp. ECM Suite 12785 | -3/Testing | Stole the SGEMP Prototype 12785 | -3/Testing | Reached level 29 12959 | -3/Testing | Found Prototype Device 12959 | -3/Testing | Identified Exp. Shield Generator 12965 | -3/Testing | Spotted PX-FEJKANCK4Q 13032 | -3/Testing | Destroyed PX-FEJKANCK4Q 13037 | -3/Testing | Found Prototype Processor 13037 | -3/Testing | Identified Spectral Analyzer 13040 | -3/Testing | Found Prototype Device 13040 | -3/Testing | Identified Exp. Transmission Jammer 13049 | -3/Testing | Discovered exit to Research (range 8) 13056 | -3/Testing | Found Prototype Device 13056 | -3/Testing | Identified AEGIS Remote Shield 13342 | -3/Testing | Core integrity fell below 20% 13412 | -3/Testing | Destroyed 8 combat bots 13652 | -3/Testing | Repaired Adv. Powered Armor 13750 | -3/Testing | Entered Research 13751 | -2/Research | Core integrity fell below 50% 13752 | -2/Research | Reached level 30 13808 | -2/Research | Discovered new exit (range 17) 13821 | -2/Research | Identified exit to Access 13946 | -2/Research | Upgraded with Weapon slot (x1) 13990 | -2/Research | Reached level 31 14000 | -2/Research | First assault squad dispatched 14013 | -2/Research | Spotted B-90 Cyclops 14025 | -2/Research | Garrison activated, responded to threat 14118 | -2/Research | Core integrity fell below 20% 14250 | -2/Research | Upgraded with Power slot (x1) 14546 | -2/Research | Destroyed 7 combat bots 14570 | -2/Research | Destroyed B-90 Cyclops 14620 | -2/Research | Reached level 32 14620 | -2/Research | High security lockdown imminent 14677 | -2/Research | Build established: Scavenger-Construct 14681 | -2/Research | Discovered new exit (range 7) 14691 | -2/Research | Identified exit to Quarantine 14700 | -2/Research | High security lockdown engaged 14745 | -2/Research | Entered Quarantine 14995 | -2/Quarantine | First assault squad dispatched 15054 | -2/Quarantine | Build established: Hacker-Construct 15099 | -2/Quarantine | System corruption reached 10% 15119 | -2/Quarantine | Scanned by Researcher 15266 | -2/Quarantine | Incoming assault squad redirected 15388 | -2/Quarantine | Spotted Fortress 15437 | -2/Quarantine | Discovered new exit (range 7) 15437 | -2/Quarantine | Discovered new exit (range 6) 15439 | -2/Quarantine | Identified exit to Protoforge 15441 | -2/Quarantine | Identified exit to Section 7 15443 | -2/Quarantine | Entered Protoforge 15445 | -2/Protoforge | Reached level 33 15505 | -2/Protoforge | Spotted Hotshot 15505 | -2/Protoforge | Spotted Hotshot 15505 | -2/Protoforge | Spotted Hotshot 15514 | -2/Protoforge | Destroyed Hotshot 15520 | -2/Protoforge | Spotted Hotshot 15522 | -2/Protoforge | Destroyed Hotshot 15528 | -2/Protoforge | Destroyed Hotshot 15538 | -2/Protoforge | Destroyed Hotshot 15555 | -2/Protoforge | Superfortress began startup sequence 15567 | -2/Protoforge | Spotted B-90 Cyclops 15613 | -2/Protoforge | Spotted Hotshot 15613 | -2/Protoforge | Spotted Hotshot 15613 | -2/Protoforge | Spotted Hotshot 15616 | -2/Protoforge | Spotted Hotshot 15632 | -2/Protoforge | Destroyed Hotshot 15636 | -2/Protoforge | Destroyed Hotshot 15639 | -2/Protoforge | Destroyed Hotshot 15649 | -2/Protoforge | Destroyed Hotshot 15719 | -2/Protoforge | Upgraded with Weapon slot (x1) 15756 | -2/Protoforge | Found Prototype Device 15756 | -2/Protoforge | Identified Cep. Weapon Articulator 15925 | -2/Protoforge | Found Cep. Weapon Articulator 15935 | -2/Protoforge | Found Prototype Device 15935 | -2/Protoforge | Identified Cep. Antimissile System 15938 | -2/Protoforge | Found Cep. Antimissile System 16088 | -2/Protoforge | Spotted Decapitator 16088 | -2/Protoforge | Spotted Decapitator 16088 | -2/Protoforge | Spotted Decapitator 16147 | -2/Protoforge | Spotted V971-q 16147 | -2/Protoforge | Spotted V267-m 16151 | -2/Protoforge | Spotted Immortal 16152 | -2/Protoforge | Spotted Immortal 16169 | -2/Protoforge | Destroyed Immortal 16192 | -2/Protoforge | Destroyed Immortal 16193 | -2/Protoforge | First assault squad dispatched 16201 | -2/Protoforge | Spotted V247-v 16204 | -2/Protoforge | Spotted V091-h 16206 | -2/Protoforge | Destroyed V091-h 16216 | -2/Protoforge | Destroyed V247-v 16241 | -2/Protoforge | Destroyed V971-q 16334 | -2/Protoforge | Spotted V961-v 16356 | -2/Protoforge | Found Prototype Device 16356 | -2/Protoforge | Identified Cep. Hypertargeting System 16413 | -2/Protoforge | Destroyed Decapitator 16417 | -2/Protoforge | Destroyed Decapitator 16431 | -2/Protoforge | Destroyed Decapitator 16493 | -2/Protoforge | Spotted V741-x 16550 | -2/Protoforge | Spotted V833-c 16550 | -2/Protoforge | Spotted V940-m 16698 | -2/Protoforge | Spotted Decapitator 16699 | -2/Protoforge | Spotted Decapitator 16699 | -2/Protoforge | Spotted V287-q 16699 | -2/Protoforge | Spotted V127-u 16700 | -2/Protoforge | Spotted Decapitator 16702 | -2/Protoforge | Destroyed Decapitator 16716 | -2/Protoforge | Destroyed V287-q 16717 | -2/Protoforge | Destroyed Decapitator 16721 | -2/Protoforge | Destroyed Decapitator 16742 | -2/Protoforge | Destroyed V127-u 16772 | -2/Protoforge | Reached level 34 17018 | -2/Protoforge | Destroyed 10 combat bots 17055 | -2/Protoforge | Found Prototype Energy Cannon 17185 | -2/Protoforge | Found Prototype Device 17185 | -2/Protoforge | Identified Cep. Networked Targeting System 17191 | -2/Protoforge | Found Prototype Processor 17191 | -2/Protoforge | Identified Cep. Melee Reflex Suite 17197 | -2/Protoforge | Found Prototype Device 17197 | -2/Protoforge | Identified Cep. Recoil Nullifier 17203 | -2/Protoforge | Found Prototype Device 17203 | -2/Protoforge | Identified Mni. Quantum Capacitor 17217 | -2/Protoforge | Found Prototype Device 17217 | -2/Protoforge | Identified Exp. Force Booster 17229 | -2/Protoforge | Spotted V347-y 17229 | -2/Protoforge | Spotted V807-j 17231 | -2/Protoforge | Destroyed V347-y 17244 | -2/Protoforge | Destroyed V807-j 17253 | -2/Protoforge | System corruption reached 30% 17295 | -2/Protoforge | Found Cep. Hypertargeting System 17298 | -2/Protoforge | Found Cep. Networked Targeting System 17310 | -2/Protoforge | Found Prototype Device 17310 | -2/Protoforge | Identified Cep. Countertargeting System 17313 | -2/Protoforge | Found Prototype Device 17313 | -2/Protoforge | Identified Exp. Kinecellerator 17451 | -2/Protoforge | Found Imp. Powered Armor 17519 | -2/Protoforge | Identified Transdimensional Reconstructor 17522 | -2/Protoforge | Found Prototype Device 17522 | -2/Protoforge | Identified Crosscalibrator 17540 | -2/Protoforge | Spotted Decapitator 17540 | -2/Protoforge | Spotted Decapitator 17540 | -2/Protoforge | Spotted Decapitator 17540 | -2/Protoforge | Spotted Decapitator 17546 | -2/Protoforge | Destroyed Decapitator 17549 | -2/Protoforge | Destroyed Decapitator 17553 | -2/Protoforge | Destroyed Decapitator 17557 | -2/Protoforge | Destroyed Decapitator 17588 | -2/Protoforge | Spotted V412-e 17588 | -2/Protoforge | Destroyed V412-e 17958 | -2/Protoforge | Destroyed 9 combat bots 18070 | -2/Protoforge | Spotted Immortal 18070 | -2/Protoforge | Spotted Immortal 18194 | -2/Protoforge | Destroyed 9 combat bots 18289 | -2/Protoforge | Destroyed Immortal 18300 | -2/Protoforge | Destroyed Immortal 18340 | -2/Protoforge | Found Faulty Cep. RG22 Armor 18344 | -2/Protoforge | Found Cep. Energy Mantle 18346 | -2/Protoforge | Found Cep. RG22 Armor 18351 | -2/Protoforge | Found Prototype Processor 18351 | -2/Protoforge | Identified Cep. Projectile Intercept Suite 18558 | -2/Protoforge | Found Cep. Networked Targeting System 18677 | -2/Protoforge | Destroyed 12 combat bots 18798 | -2/Protoforge | Spotted V530-j 18809 | -2/Protoforge | Destroyed V530-j 18813 | -2/Protoforge | Destroyed V833-c 18835 | -2/Protoforge | Destroyed V940-m 18847 | -2/Protoforge | Found Exp. Kinecellerator 18855 | -2/Protoforge | Found Prototype Device 18855 | -2/Protoforge | Identified Exp. Thermal Defense Suite 18865 | -2/Protoforge | Found Cep. Matter Streamer 18891 | -2/Protoforge | Found Prototype Hackware 18891 | -2/Protoforge | Identified Cep. Network Penetrator 18966 | -2/Protoforge | Reached level 35 19094 | -2/Protoforge | Found Cep. Matter Streamer 19114 | -2/Protoforge | Destroyed V741-x 19181 | -2/Protoforge | Destroyed 10 combat bots 19274 | -2/Protoforge | Destroyed 8 combat bots 19564 | -2/Protoforge | Spotted AP7-3 19564 | -2/Protoforge | Spotted AP7-3 19582 | -2/Protoforge | High security lockdown imminent 19604 | -2/Protoforge | Destroyed AP7-3 19632 | -2/Protoforge | Destroyed AP7-3 19662 | -2/Protoforge | High security lockdown engaged 19691 | -2/Protoforge | Found Prototype Device 19691 | -2/Protoforge | Identified Cep. Thermoelectric Network 19698 | -2/Protoforge | Found Cep. Cloak Mesh 19872 | -2/Protoforge | Destroyed 9 combat bots 19916 | -2/Protoforge | Found Cep. Matter Streamer 19993 | -2/Protoforge | Destroyed 18 combat bots 20056 | -2/Protoforge | Additional patrols dispatched to research labs 20060 | -2/Protoforge | Found Cep. Nanofilaments [Conductive] 20060 | -2/Protoforge | Installed Cep. Nanofilaments [Conductive], 2 resistances modified: TH -15%, EM +25% 20069 | -2/Protoforge | Found Cep. Navigation Harness 20118 | -2/Protoforge | Spotted Investigator 20316 | -2/Protoforge | Spotted Executioner 20317 | -2/Protoforge | Spotted Executioner 20415 | -2/Protoforge | Spotted EXE-6 20415 | -2/Protoforge | Spotted EXE-6 20427 | -2/Protoforge | Destroyed EXE-6 20431 | -2/Protoforge | Destroyed EXE-6 20459 | -2/Protoforge | Spotted Decapitator 20478 | -2/Protoforge | Spotted Decapitator 20484 | -2/Protoforge | Destroyed Decapitator 20484 | -2/Protoforge | Destroyed Decapitator 20503 | -2/Protoforge | Spotted EXE-6 20503 | -2/Protoforge | Spotted EXE-6 20515 | -2/Protoforge | Destroyed EXE-6 20540 | -2/Protoforge | Destroyed EXE-6 20559 | -2/Protoforge | Spotted AP7-3 20560 | -2/Protoforge | Spotted AP7-3 20563 | -2/Protoforge | Destroyed AP7-3 20578 | -2/Protoforge | Spotted Overlord 20599 | -2/Protoforge | Destroyed AP7-3 20614 | -2/Protoforge | Destroyed Overlord 20694 | -2/Protoforge | Spotted Hotshot 20703 | -2/Protoforge | Spotted Hotshot 20706 | -2/Protoforge | Spotted Hotshot 20706 | -2/Protoforge | Spotted Hotshot 20706 | -2/Protoforge | Spotted Hotshot 20710 | -2/Protoforge | Destroyed Hotshot 20714 | -2/Protoforge | Destroyed Hotshot 20717 | -2/Protoforge | Destroyed Hotshot 20748 | -2/Protoforge | Destroyed 10 combat bots 20770 | -2/Protoforge | Spotted Hotshot 20771 | -2/Protoforge | Spotted Hotshot 20771 | -2/Protoforge | Spotted Hotshot 20772 | -2/Protoforge | Spotted Hotshot 20776 | -2/Protoforge | Destroyed Hotshot 20776 | -2/Protoforge | Destroyed Hotshot 20779 | -2/Protoforge | Destroyed Hotshot 20783 | -2/Protoforge | Destroyed Hotshot 20783 | -2/Protoforge | Spotted Hotshot 20827 | -2/Protoforge | Destroyed 8 combat bots 20837 | -2/Protoforge | Discovered exit to Access (range 7) 20872 | -2/Protoforge | Entered Access 20873 | -1/Access | Core integrity fell below 50% 20873 | -1/Access | Delivered the SGEMP Prototype to Zhirov 20873 | -1/Access | Zhirov transferred Access data 20874 | -1/Access | Loaded intel: 118 machine locations 20874 | -1/Access | Loaded intel: 94 trap records 20874 | -1/Access | Identified exit to Surface 20874 | -1/Access | Discovered exit to Surface (range 213) 20874 | -1/Access | Identified exit to Command 20874 | -1/Access | Discovered exit to Command (range 129) 20874 | -1/Access | Reached level 36 20951 | -1/Access | Zhirov warped through subspace 20975 | -1/Access | High security lockdown imminent 21055 | -1/Access | High security lockdown engaged 21057 | -1/Access | Garrison activated, responded to threat 21185 | -1/Access | Spotted Striker 21203 | -1/Access | Destroyed 10 combat bots 21207 | -1/Access | Entered Command 21209 | -1/Command | Reached level 37 21210 | -1/Command | Upgraded with Weapon slot (x1) 21239 | -1/Command | Spotted Executioner 21247 | -1/Command | Destroyed Executioner 21250 | -1/Command | Spotted Executioner 21251 | -1/Command | Destroyed Executioner 21267 | -1/Command | Core integrity fell below 20% 21289 | -1/Command | Destroyed 9 combat bots 21362 | -1/Command | Spotted B-99 Colossus 21382 | -1/Command | Destroyed B-99 Colossus 21427 | -1/Command | High security lockdown imminent 21448 | -1/Command | Destroyed 13 combat bots 21488 | -1/Command | Spotted M Guard 21488 | -1/Command | Spotted M Guard 21488 | -1/Command | Spotted Combat Programmer 21501 | -1/Command | Destroyed M Guard 21507 | -1/Command | High security lockdown engaged 21519 | -1/Command | Spotted B-99 Colossus 21558 | -1/Command | Spotted Combat Programmer 21558 | -1/Command | Destroyed Combat Programmer 21565 | -1/Command | System corruption reached 10% 21578 | -1/Command | Destroyed Combat Programmer 21684 | -1/Command | Met MAIN.C 21695 | -1/Command | 0b10 Conduit disabled 21704 | -1/Command | Destroyed MAIN.C Shell 21707 | -1/Command | MAIN.C activated Command garrisons 21708 | -1/Command | Surrendered to MAIN.C 21708 | -1/Command | Loaded intel: 77 machine locations 21708 | -1/Command | Loaded intel: 97 trap records 21708 | -1/Command | Discovered exit to Surface (range 114) 21708 | -1/Command | Discovered exit to Surface (range 28) 21803 | -1/Command | Found Prototype Processor 21803 | -1/Command | Identified Exp. Target Analyzer 21806 | -1/Command | Found Prototype Processor 21806 | -1/Command | Identified Exp. Targeting Computer 21808 | -1/Command | Found Prototype Device 21808 | -1/Command | Identified Exp. EM Shield 21811 | -1/Command | Found Prototype Device 21811 | -1/Command | Identified Exp. Hardlight Generator 21813 | -1/Command | Found Prototype Device 21813 | -1/Command | Identified Exp. System Purifier 21847 | -1/Command | MAIN.C activated Command garrisons 21887 | -1/Command | Unknown forces attacked Command 21887 | -1/Command | Spotted EQ-002 21887 | -1/Command | Spotted EQ-005 21887 | -1/Command | Spotted EQ-006 21887 | -1/Command | Spotted EQ-003 21891 | -1/Command | Spotted EQ-001 21894 | -1/Command | Spotted EQ-004 21902 | -1/Command | Destroyed EQ-002 21908 | -1/Command | Spotted EQ-000 21913 | -1/Command | All MAIN.C guards destroyed 21913 | -1/Command | Destroyed EQ-005 21917 | -1/Command | Destroyed EQ-004 21921 | -1/Command | Destroyed EQ-003 21932 | -1/Command | Destroyed EQ-000 21949 | -1/Command | Found Prototype Processor 21949 | -1/Command | Identified Exp. Core Analyzer 21952 | -1/Command | Found Prototype Device 21952 | -1/Command | Identified Exp. Thermal Shield 21970 | -1/Command | Spotted EQ-019 21970 | -1/Command | Spotted EQ-021 21970 | -1/Command | Spotted EQ-020 21970 | -1/Command | Spotted EQ-022 21985 | -1/Command | Destroyed EQ-022 21988 | -1/Command | Destroyed EQ-021 22008 | -1/Command | Spotted EQ-008 22013 | -1/Command | Destroyed EQ-008 22073 | -1/Command | Spotted EQ-032 22076 | -1/Command | Spotted EQ-018 22078 | -1/Command | Destroyed EQ-032 22090 | -1/Command | Destroyed EQ-018 22090 | -1/Command | Spotted EQ-038 22100 | -1/Command | Found Prototype Device 22100 | -1/Command | Identified Exp. Focal Shield 22102 | -1/Command | Found Exp. Core Analyzer 22106 | -1/Command | Found Exp. Core Analyzer 22111 | -1/Command | Spotted EQ-025 22121 | -1/Command | Destroyed EQ-025 22129 | -1/Command | Spotted EQ-028 22157 | -1/Command | Destroyed EQ-028 22161 | -1/Command | Spotted EQ-047 22163 | -1/Command | Spotted EQ-058 22171 | -1/Command | Destroyed EQ-058 22176 | -1/Command | Spotted EQ-030 22178 | -1/Command | Destroyed EQ-047 22184 | -1/Command | Spotted EQ-046 22184 | -1/Command | Destroyed EQ-030 22191 | -1/Command | Spotted EQ-079 22191 | -1/Command | Spotted EQ-060 22191 | -1/Command | Spotted EQ-072 22192 | -1/Command | Spotted EQ-061 22194 | -1/Command | Destroyed EQ-079 22199 | -1/Command | Spotted EQ-078 22203 | -1/Command | Destroyed EQ-061 22208 | -1/Command | Spotted EQ-062 22214 | -1/Command | Destroyed EQ-072 22222 | -1/Command | Warped through subspace 22222 | -1/Command | Spotted EQ-031 22226 | -1/Command | Destroyed by EQ-031 with Graviton Cannon Last Messages --------------- 22218_ EQ-078 suffers critical hit (Destroy). 22218_ EQ-078 suffers critical hit (Blast). 22218_ EQ-078 knocked back. 22218_ EQ-062 knocked back. 22219_ Acquired 38 matter. 22221_ EQ-078 knocked back. 22222_ Warped through subspace. 22223_ Acquired 4 matter. 22223_ Acquired 6 matter. 22223_ Slug penetrates EQ-031. 22223_ EQ-031 knocked back. 22223_ Slug penetrates EQ-031. 22223_ Railslug penetrates EQ-031. 22223_ Railslug penetrates Wall. 22223_ Critical hit (Meltdown: +200). 22224_ Acquired 2 matter. 22224_ Acquired 1 matter. 22224_ Acquired 38 matter. [Achievement: 75k Club] [Achievement: 100k Club] Map ----- +----------------------------------------------------+ | ?# ! ! # #??# #???# #??# #??# # # #??# | | ?# + #??# #???# #??# #### # !# #??# | | ?# # #?##+#####+#??# ## ###### #??# | | ######### ### ] #??# < ## #????# #??# | | # #??# ## #????# #??# | | # #??####### #????# #??# | | + ###################??# #??# | | # [ # #??# #??# | | """ # # #### #??# | | """ #+######## ## # #??# | | """ ###????# ## " #??# | | """ ###### "" "" #?#" #??# | | + ""R"" #?#" ##?# | | ###### """" #### "### | | #### ##????#########+########!!!=! !]] # | | #??# #???????????# ###;###!!!!]%=[## | | ####+#####???????# != =*!% !![=!!!%! | | + #???????# !!=*!!%!=[!|%[!*! ! | | ######### #???????# = []!!![=%*!%!!!=*! | | #???????# #???????# %*;;#"!=!!!!=%]"### | | #####???????# #???????##; ;;#?# "!**%%[####?# | | ??########### #???######;Q;###### ==!! #????# | | ??# !# #???# # ] #????# | | ??# ###/######?# # #????# | | ### "" # ### # #????# | | + = """" + + @ ] # ##+####?? | | ### """" # ##% + ## #?? | | ??# "" # ##]% # ## #?? | | ??# # ################ ## #?? | | ??# ] =#! ##### ##### # #?? | | ??#+######### ^^ + #?? | | ??# " ^ # #?? | | ??# #########+### ^^ # #?? | | ??# #???# ## ##### ##### # #?? | | ??# #???# / ####+################## ## #?? | | ### ##### # ! #???# # #######?? | | + # #???# + #???????? | | ## ############ "" #???# # #???????? | | # #""""""# ## """" #???# ] # #???????? | | # #""" + ## """" #???# # #???????? | | # #""" + ##"" "" #???# * # #???????? | | + #""" ^+ ##"" #???#+###+## #???????? | | # #""""""# ##"" #???# #?# ## ####????? | | # ######## ##T """" #???# #?# ## #????? | | !# ##"" """" #####+###+## #????? | | # ##"" """" ## # #????? | | ## ##"" """" ## + #????? | | ?# ## ## # #????? | | ############ ## ## ! # #????? | | + = [ # ################+########+###+#????? | +----------------------------------------------------+ Best States ------------- Heat Dissipation 142 Energy Generation 117 Energy Capacity 9761 Matter Stores 650 Matter Capacity 650 Sight Range 18 Robot Scan Range 20 Terrain Scan Density 10 ECM Strength 3 Jamming Range 22 Cloak Strength 6 Power Amplification 30 Armor Coverage 625 Resistance: KI 25 Resistance: TH 20 Resistance: EX 20 Resistance: EM 100 Propulsion Shielding 66 Weapon Shielding 90 Point Defense Rating 480 Weapon Cycling 25 Phase Shifting 15 Evasion (%) 79 Targeting Accuracy 30 Target Analysis 10 Core Analysis 12 Recoil Reduction 4 Particle Charging 30 Kinecelleration 66 Force Boost 50 Offensive Hacking 21 Defensive Hacking 15 Item Schematics ----------------- Combat Drone Bay | -6/Data Miner | Free Lgt. Regenerative Plating | -6/Data Miner | Free Cld. Gravmag System | -6/Data Miner | Free Prc. Matter Filter | -6/Data Miner | Free Enh. Force Rifle | -6/Data Miner | Free Imp. Antigrav System | -6/Data Miner | Free Imp. Point Defense System | -6/Data Miner | Free Imp. Component Analysis Suite | -6/Data Miner | Free Adv. Coolant Injector | -6/Data Miner | Free Hvy. Siege Treads | -6/Data Miner | Free Gamma Bomb Array | -6/Data Miner | Free Dispersion Rifle | -6/Data Miner | Free Adv. Recalibrator | -6/Data Miner | Free Assault Drone Bay | -5/Zhirov | Free Exp. Heat Sink | -5/Zhirov | Free Exp. Optical Array | -5/Zhirov | Free Imp. Arc Thrower | -5/Zhirov | Free Adv. Kinecellerator | -3/Testing | Archive Hvy. Hardcell Cannon | -3/Testing | Archive Diametric Drive | -3/Testing | Archive Imp. Diametric Drive | -2/Quarantine | Archive Hds. Centrium Wheel | -2/Quarantine | Archive Kinetic Spear | -2/Quarantine | Archive Lrn. Phase Cannon | -2/Quarantine | Archive Exp. Energy Well | -2/Protoforge | Archive Cld. Antigrav System | -2/Protoforge | Archive Stealth Drone Bay | -2/Protoforge | Archive Cld. Antimatter Reactor | -2/Protoforge | Archive Adv. Quantum Shading Machine | -2/Protoforge | Archive Adv. Remote Shield | -2/Protoforge | Archive Exp. Reaction Control System | -2/Protoforge | Archive Proton Burst Cannon | -2/Protoforge | Archive Centrium Heavy Armor Plating | -2/Protoforge | Archive Hds. Centrium Leg | -2/Protoforge | Archive Adv. EM Disruption Field | -2/Protoforge | Archive Vibroblade | -2/Protoforge | Archive Robot Schematics ------------------ L-41 Fighter | -6/Data Miner | Free B-48 Gladiator | -6/Data Miner | Free R-10 Processor | -6/Data Miner | Free Y-64 Sentinel | -6/Data Miner | Free M-30 Cleanser | -6/Data Miner | Free B-60 Warrior | -6/Data Miner | Free H-88 Terminator | -2/Protoforge | Archive C-55 Analyst | -2/Protoforge | Archive G-73 Enforcer | -2/Protoforge | Archive S-43 Plague | -2/Protoforge | Archive R-06 Scavenger | -2/Protoforge | Archive A-02 Transporter | -2/Protoforge | Archive Fabricated ------------ Imp. Arc Thrower | x1 | -4/Factory Repaired ---------- Minigun | 24% | -8/Storage Adv. Powered Armor | 1% | -3/Testing Studied --------- Lgt. Deuterium Engine | -6/Factory | Hacked Alien Tech Used ----------------- Integrated Dissipator Concept Nanofilaments [Conductive] Transdimensional Reconstructor Achievements -------------- 100k Club 75k Club Anti-science Crusade Bumper Bots Consequences Definitely A Prototype Ew, Corruption Hot Stuff I Laugh At Your Crits I'm Outta Here, Maybe IP Theft Irresistible Scrap Morally Flexible Not So Scrappy Overwhelming Prodigal Son Scrappetite Sixth Sense Spot Them First Sprinter Super-what Now? Superinsulated That Tickles Universal Adapter Z1$+NX3F=JRE3_ZNQR Challenges ------------ None RPGLIKE | -11 -10 -10 -10 -9 -8 -8 -8 -6 -6 -6 -6 -6 -6 -5 -5 -5 -5 -5 -4 -4 -3 -3 -2 -2 -2 -1 -1 --------- Run | Yrd Mat Min Exi Min Mat Sto Rec Fac Was Fac Low Low Dat Pro Fac Upp Upp Zhi Pro Fac Res Tes Res Qua Frg Acc Com Levels Raised 36 | . . . . 1 2 2 1 3 . 7 . 1 . 2 1 1 . . 2 2 2 1 3 . 3 1 1 XP Earned 58471 | 3000 280 500 350 1100 2900 3025 2050 3885 290 9997 882 802 316 2614 1904 1161 203 220 2058 3563 2910 2389 3445 1058 4282 1594 1693 XP Spent 56785 | 2700 . . . 500 800 3035 2500 2545 750 5700 . . . 3225 3500 3315 4700 . 425 1040 6100 3060 2200 . 7600 . 3090 Upgrades 109 | 10 . . . 1 1 14 2 12 1 7 . . . 8 9 8 3 . 2 4 2 7 2 . 11 . 5 Power Slot 2 | 1 . . . . . . . . . . . . . . . . . . . . . . 1 . . . . Propulsion Slot 2 | 1 . . . . . . . 1 . . . . . . . . . . . . . . . . . . . Utility Slot 10 | 1 . . . . . 1 2 . . 2 . . . . 1 . 1 . . . 2 . . . . . . Weapon Slot 6 | 1 . . . . 1 . . . . 1 . . . . . . . . . . . . 1 . 1 . 1 Core Integrity 26 | . . . . . . 4 . 5 . . . . . . 8 3 . . . . . 4 . . . . 2 Heat Dissipation 13 | 5 . . . . . . . 4 . . . . . . . . . . . 4 . . . . . . . Energy Generation 1 | . . . . . . . . . . 1 . . . . . . . . . . . . . . . . . Energy Storage 5 | . . . . . . 2 . . . . . . . 2 . 1 . . . . . . . . . . . Matter Storage 7 | . . . . . . . . . . . . . . . . . . . 2 . . . . . 5 . . Mass Support 1 | . . . . . . . . 1 . . . . . . . . . . . . . . . . . . . Inventory Capacity 6 | 1 . . . 1 . . . . 1 . . . . . . . . . . . . 1 . . 2 . . Sight Range 2 | . . . . . . . . . . 2 . . . . . . . . . . . . . . . . . Sensor Range 1 | . . . . . . . . . . . . . . . . . . . . . . . . . 1 . . Ranged Accuracy 8 | . . . . . . 1 . 1 . . . . . 2 . 2 2 . . . . . . . . . . Hack Attack % 3 | . . . . . . 2 . . . . . . . . . . . . . . . 1 . . . . . Hack Defense % 2 | . . . . . . 1 . . . . . . . . . . . . . . . 1 . . . . . KI Resistance % 2 | . . . . . . 1 . . . . . . . 1 . . . . . . . . . . . . . TH Resistance % 2 | . . . . . . 1 . . . . . . . 1 . . . . . . . . . . . . . EX Resistance % 4 | . . . . . . 1 . . . . . . . 1 . . . . . . . . . . . . 2 KI Damage % 3 | . . . . . . . . . . . . . . . . 2 . . . . . . . . 1 . . TH Damage % 3 | . . . . . . . . . . 1 . . . 1 . . . . . . . . . . 1 . . Protomatter Created 14346 | . . . . 168 166 220 132 363 . 129 289 189 . 227 177 406 13 84 339 1349 388 723 841 506 5679 660 1298 Integrity Restored 27130 | . . . . 444 164 534 392 725 498 914 382 492 . 450 327 810 39 252 826 2182 984 1374 1644 1383 9233 540 2541 Core 24016 | . . . . 418 115 534 322 644 498 552 287 425 . 450 327 810 39 252 540 1780 984 1374 1644 1383 7557 540 2541 Parts 3114 | . . . . 26 49 . 70 81 . 362 95 67 . . . . . . 286 402 . . . . 1676 . . Protomatter Decayed 7145 | . . . . 18 145 39 . 78 17 176 271 22 . 55 30 75 29 . 57 428 36 63 216 . 1614 119 3657 Game ------ Seed SpliceCompanionPod Manual? 0 Play Time 04:30:51 Cumulative 745.9 hours Start 2025.10.28 @ 18:55:58 End 2025.10.29 @ 16:49:48 Sessions 3 Manual Loads 0 Difficulty Rogue Special Mode Winter2019/RPGLIKE Game No. 63 Rogue 51 Adventurer 9 Explorer 3 Win Type - Total 9 Types 4/0/0/2/0/1/1/0/0/1 Lore% 59 Gallery% 59 Achievement% 47 Wizard Run 0 Options --------- Layout 1 ASCII 0 Keyboard 0 Movement Mouse Keybinds 0 Fullscreen 1 Font 40/SmallcapsGlow Map View 50x40 Zoom Use 0% Tactical HUD 1 Map Filters NONE Filters NONE Steam 1 RUN: 7a04d912-f2e6-421b-95d6-56735fd0579d